{"text_format":"1","workbook":"xlsx","n_sheets":7,"sheets":["Debug_AssignCounts","Abwesenheiten","Dienste","Dienstplan","Dienstplan clean","Prüfung","Leerer Dienstplan"],"not_rendered":{"charts":0,"images":0,"macros":1,"external_links":0,"defined_names":0,"comments":0,"pivot_tables":0},"unopened":[],"bounds":{"document_bytes":16777216,"sheet_cells":100000,"rows_first":2000,"rows_last":500,"rows_between":2000,"halvings":0,"cell_chars":16384,"cell_head_chars":4096},"cells_cut":0,"cells_raw":0,"read":"whole","date_system":"1900"}

{"sheet":"Debug_AssignCounts","index":0,"n_rows":18,"n_cols":7,"rows_kept":18,"cut":false,"hidden":false,"merged":[]}
["Mitarbeiter \\ Dienst","Frühstück","Kochen","Elternabend 1","Elternabend 2","Notdienst Essensausgabe","Putznotdienst"]
["Enno",0,0,0,0,0,0]
["Feline",0,0,0,0,0,0]
["Ida E.",0,0,0,0,0,0]
["Ida W.",0,0,0,0,0,0]
["Leo",0,0,0,0,0,0]
["Marina",0,0,0,0,0,0]
["Paulina",0,0,0,0,0,0]
["Theo",0,0,0,0,0,0]
["Vasu",0,0,0,0,0,0]
["Elina",1.7142857142857142,0.21428571428571427,7.1428571428571425E-2,7.1428571428571425E-2,1.7142857142857142,1.7142857142857142]
["Jakob",0.36363636363636365,0,0,0,0.36363636363636365,0.36363636363636365]
["Maja & Sophie",0.36363636363636365,0,0,0,0.36363636363636365,0.36363636363636365]
["Marius",0,0,0,0,0,0]
["Marlene",2.3333333333333335,0.26666666666666666,0.13333333333333333,0.13333333333333333,2.3333333333333335,2.3333333333333335]
["Matej",1.1538461538461537,0.15384615384615385,7.6923076923076927E-2,7.6923076923076927E-2,1.1538461538461537,1.1538461538461537]
["Remo",0,0,0,0,0,0]
["Fritzi",5.625,0.625,0.25,0.25,5.625,5.625]

{"sheet":"Abwesenheiten","index":1,"n_rows":236,"n_cols":18,"rows_kept":236,"cut":false,"hidden":false,"merged":[]}
[null,"Enno","Feline","Ida E.","Ida W.","Leo","Marina","Paulina","Theo","Vasu","Elina","Jakob","Maja & Sophie","Marius","Marlene","Matej","Remo","Fritzi"]
["Eintrittsdatum",null,null,null,null,null,null,null,null,null,"2025-09-15","2025-08-15","2025-08-15",null,"2025-10-01","2025-09-01",null,"2026-01-01"]
["Dienstfaktor",null,null,null,null,null,null,null,null,null,null,null,2,null,null,null,null,0.5]
["2025-08-11",null,null,null,null,null,"x",null,null,null,"x","x","x","x","x","x","x","x"]
["2025-08-12",null,null,null,null,null,null,null,null,null,"x","x","x","x","x","x","x","x"]
["2025-08-13",null,null,null,null,null,null,null,null,null,"x","x","x","x","x","x","x","x"]
["2025-08-14",null,"x",null,null,null,null,null,null,null,"x","x","x","x","x","x","x","x"]
["2025-08-15",null,null,null,null,null,null,null,null,null,"x","x","x","x","x","x","x","x"]
["2025-08-16",null,null,null,null,null,null,null,null,null,"x","x","x","x","x","x","x","x"]
["2025-08-17",null,null,null,null,null,null,null,null,null,"x","x","x","x","x","x","x","x"]
["2025-08-18",null,null,null,null,null,null,null,null,null,"x","x","x","x","x","x","x","x"]
["2025-08-19",null,"x",null,null,null,null,null,null,null,"x","x","x","x","x","x","x","x"]
["2025-08-20",null,null,null,null,null,null,null,null,null,"x","x","x","x","x","x","x","x"]
["2025-08-21",null,null,null,null,null,null,null,null,null,"x","x","x","x","x","x","x","x"]
["2025-08-22",null,null,null,null,null,null,null,null,null,"x","x","x","x","x","x","x","x"]
["2025-08-23",null,null,null,null,null,null,null,null,null,"x","x","x","x","x","x","x","x"]
["2025-08-24",null,null,null,null,null,null,null,null,null,"x","x","x","x","x","x","x","x"]
["2025-08-25",null,null,null,null,null,null,null,null,null,"x","x","x","x","x","x","x","x"]
["2025-08-26",null,null,null,null,null,null,null,null,null,"x","x","x","x","x","x","x","x"]
["2025-08-27",null,null,null,null,null,null,null,null,null,"x","x","x","x","x","x","x","x"]
["2025-08-28",null,null,null,null,null,null,null,null,null,"x","x","x","x","x","x","x","x"]
["2025-08-29",null,null,null,null,null,null,null,null,null,"x","x","x","x","x","x","x","x"]
["2025-08-30",null,null,null,null,null,null,null,null,null,"x","x","x","x","x","x","x","x"]
["2025-08-31",null,null,null,null,null,null,null,null,null,"x","x","x","x","x","x","x","x"]
["2025-09-01",null,null,null,null,null,null,null,null,null,"x","x","x","x","x","x","x","x"]
["2025-09-02",null,null,null,null,null,null,null,null,null,"x","x","x","x","x","x","x","x"]
["2025-09-03",null,null,null,null,null,null,null,null,null,"x","x","x","x","x","x","x","x"]
["2025-09-04",null,null,null,null,null,null,null,null,null,"x","x","x","x","x","x","x","x"]
["2025-09-05",null,"x",null,null,null,null,null,null,null,"x","x","x","x","x","x","x","x"]
["2025-09-06",null,null,null,null,null,null,null,null,null,"x","x","x","x","x","x","x","x"]
["2025-09-07",null,null,null,null,null,null,null,null,null,"x","x","x","x","x","x","x","x"]
["2025-09-08",null,null,null,null,null,null,null,null,null,"x","x","x","x","x","x","x","x"]
["2025-09-09",null,null,null,null,null,null,null,null,null,"x","x","x","x","x","x","x","x"]
["2025-09-10",null,null,null,null,null,null,null,null,null,"x","x","x","x","x","x","x","x"]
["2025-09-11",null,null,null,null,null,null,null,null,null,"x","x","x",null,"x","x","x","x"]
["2025-09-12",null,"x",null,null,null,"x",null,null,null,"x","x","x",null,"x","x",null,"x"]
["2025-09-13",null,null,null,null,null,null,null,null,null,"x","x","x",null,"x","x",null,"x"]
["2025-09-14",null,null,null,null,null,null,null,null,null,"x","x","x",null,"x","x",null,"x"]
["2025-09-15",null,null,null,null,null,null,null,null,null,"x","x",null,null,"x","x",null,"x"]
["2025-09-16",null,null,null,null,null,null,null,null,null,"x","x",null,null,"x","x",null,"x"]
["2025-09-17",null,null,null,null,null,null,null,null,null,"x","x","x",null,"x","x",null,"x"]
["2025-09-18",null,null,null,null,null,null,null,null,null,"x",null,"x",null,"x","x",null,"x"]
["2025-09-19",null,"x",null,null,null,null,null,null,null,"x",null,"x",null,"x","x","x","x"]
["2025-09-20",null,null,null,null,null,null,null,null,null,"x",null,"x",null,"x","x",null,"x"]
["2025-09-21",null,null,null,null,null,null,null,null,null,"x",null,"x",null,"x","x",null,"x"]
["2025-09-22",null,"x",null,null,null,null,null,null,null,"x",null,"x",null,"x","x",null,"x"]
["2025-09-23",null,null,null,null,null,null,null,null,null,"x",null,"x",null,"x","x",null,"x"]
["2025-09-24",null,null,null,null,null,null,null,null,null,"x",null,"x",null,"x","x",null,"x"]
["2025-09-25",null,null,null,null,null,null,null,null,null,"x",null,"x",null,"x","x",null,"x"]
["2025-09-26",null,null,null,null,null,null,null,null,null,"x",null,"x",null,"x","x",null,"x"]
["2025-09-27",null,null,null,null,null,null,null,null,null,"x",null,"x",null,"x","x",null,"x"]
["2025-09-28",null,null,null,null,null,null,null,null,null,"x",null,"x",null,"x","x",null,"x"]
["2025-09-29",null,"x",null,null,null,null,null,null,null,"x",null,"x",null,"x",null,null,"x"]
["2025-09-30",null,null,null,null,null,"x",null,null,null,"x",null,"x",null,"x",null,"x","x"]
["2025-10-01",null,null,null,"x",null,"x",null,null,null,"x",null,"x","x","x",null,"x","x"]
["2025-10-02",null,null,null,"x",null,"x",null,null,null,"x",null,"x","x","x",null,"x","x"]
["2025-10-03",null,null,null,"x",null,null,null,null,null,"x",null,null,"x","x",null,"x","x"]
["2025-10-04",null,null,null,"x",null,null,null,null,null,"x",null,null,"x","x",null,null,"x"]
["2025-10-05",null,null,null,"x",null,null,null,null,null,"x",null,null,"x","x",null,null,"x"]
["2025-10-06",null,null,null,"x",null,null,null,null,null,"x",null,null,"x","x",null,null,"x"]
["2025-10-07",null,null,null,"x",null,null,null,null,null,"x",null,"x","x","x",null,null,"x"]
["2025-10-08",null,null,null,"x",null,null,null,null,null,"x",null,"x","x","x",null,null,"x"]
["2025-10-09",null,null,null,"x",null,null,null,null,null,"x",null,"x","x","x",null,null,"x"]
["2025-10-10",null,null,null,"x",null,null,null,null,null,"x",null,"x","x","x",null,null,"x"]
["2025-10-11",null,null,null,"x",null,null,null,null,null,"x",null,"x",null,"x",null,null,"x"]
["2025-10-12",null,null,null,"x",null,null,null,null,null,"x",null,"x",null,"x",null,null,"x"]
["2025-10-13",null,"x",null,"x",null,null,null,"x",null,null,null,"x",null,"x",null,null,"x"]
["2025-10-14","x","x",null,"x",null,null,null,"x",null,null,null,"x",null,"x",null,null,"x"]
["2025-10-15",null,"x",null,"x",null,null,null,"x",null,null,null,null,null,"x",null,null,"x"]
["2025-10-16",null,"x",null,"x",null,null,null,"x",null,null,null,null,null,"x",null,null,"x"]
["2025-10-17",null,"x",null,"x",null,null,null,"x",null,null,null,null,null,"x",null,null,"x"]
["2025-10-18",null,"x",null,null,null,null,null,null,null,null,null,null,null,"x",null,null,"x"]
["2025-10-19",null,"x",null,null,null,null,null,null,null,null,null,null,null,"x",null,null,"x"]
["2025-10-20",null,"x",null,null,null,null,null,null,null,null,null,null,null,"x",null,"x","x"]
["2025-10-21",null,"x",null,null,null,null,null,null,null,null,null,null,null,"x",null,"x","x"]
["2025-10-22",null,"x",null,null,null,null,null,null,null,null,null,null,null,"x",null,"x","x"]
["2025-10-23",null,"x",null,null,null,null,null,null,null,null,null,"x",null,"x",null,"x","x"]
["2025-10-24",null,"x",null,null,null,null,null,null,null,null,null,null,null,"x",null,"x","x"]
["2025-10-25",null,"x",null,null,null,null,null,null,null,null,null,null,null,"x",null,null,"x"]
["2025-10-26",null,"x",null,null,null,null,null,null,null,null,null,null,null,"x",null,null,"x"]
["2025-10-27",null,null,null,null,null,null,null,null,null,null,null,null,null,"x",null,null,"x"]
["2025-10-28",null,null,null,null,null,null,null,null,null,null,null,null,null,"x",null,null,"x"]
["2025-10-29",null,null,null,null,null,null,null,null,null,null,null,null,null,null,null,null,"x"]
["2025-10-30",null,null,null,null,null,null,null,null,null,null,null,null,null,null,null,null,"x"]
["2025-10-31",null,null,null,null,null,null,null,null,null,null,null,null,null,null,null,null,"x"]
["2025-11-01",null,null,"x",null,null,null,null,null,null,null,null,null,null,"x",null,null,"x"]
["2025-11-02",null,null,"x",null,null,null,null,null,null,null,null,null,null,"x",null,null,"x"]
["2025-11-03",null,"x","x",null,null,null,null,null,null,null,null,null,null,"x",null,null,"x"]
["2025-11-04",null,"x",null,null,null,null,null,null,null,null,null,null,null,"x",null,null,"x"]
["2025-11-05",null,"x","x",null,null,null,null,null,null,null,null,null,null,"x",null,null,"x"]
["2025-11-06",null,null,"x",null,null,null,null,null,null,null,null,null,null,"x",null,null,"x"]
["2025-11-07",null,"x",null,null,null,null,null,null,null,null,"x",null,null,"x",null,null,"x"]
["2025-11-08",null,null,"x",null,null,null,null,null,null,null,"x",null,null,"x",null,null,"x"]
["2025-11-09",null,null,"x",null,null,null,null,null,null,null,"x",null,null,"x",null,null,"x"]
["2025-11-10",null,null,"x",null,null,null,null,"x",null,null,"x",null,null,"x",null,null,"x"]
["2025-11-11",null,null,null,null,null,null,null,"x",null,null,"x",null,null,"x",null,null,"x"]
["2025-11-12",null,null,"x",null,null,null,null,"x",null,null,"x",null,"x","x",null,null,"x"]
["2025-11-13",null,null,"x",null,null,null,null,"x",null,null,"x",null,"x","x",null,null,"x"]
["2025-11-14",null,"x",null,null,null,null,null,"x",null,null,"x",null,"x","x",null,null,"x"]
["2025-11-15",null,null,"x",null,null,null,null,null,null,null,null,null,null,"x",null,null,"x"]
["2025-11-16",null,null,"x",null,null,null,null,null,null,null,null,null,null,"x",null,null,"x"]
["2025-11-17",null,null,"x",null,null,null,null,null,null,null,null,null,null,null,null,null,"x"]
["2025-11-18",null,null,null,null,null,null,null,null,null,null,null,null,null,"x",null,null,"x"]
["2025-11-19",null,null,"x",null,null,null,null,null,null,null,null,null,null,null,null,null,"x"]
["2025-11-20",null,null,"x",null,null,null,null,null,null,null,null,"x",null,"x",null,"x","x"]
["2025-11-21",null,"x",null,null,null,null,null,null,null,null,null,null,null,null,null,null,"x"]
["2025-11-22",null,null,"x",null,null,null,null,null,null,null,null,null,null,"x",null,null,"x"]
["2025-11-23",null,null,"x",null,null,null,null,null,null,null,null,null,null,"x",null,null,"x"]
["2025-11-24","x",null,"x",null,null,null,null,null,null,null,null,null,null,"x",null,null,"x"]
["2025-11-25",null,null,null,null,null,null,null,null,null,null,null,null,null,"x",null,null,"x"]
["2025-11-26",null,null,"x",null,null,null,null,null,null,null,null,null,null,"x",null,null,"x"]
["2025-11-27",null,null,"x",null,null,null,null,null,null,null,null,null,null,"x",null,null,"x"]
["2025-11-28",null,null,null,null,null,null,null,null,null,null,null,null,null,null,null,null,"x"]
["2025-11-29",null,null,"x",null,null,null,null,null,null,null,null,null,null,"x",null,null,"x"]
["2025-11-30",null,null,"x",null,null,null,null,null,null,null,null,null,null,"x",null,null,"x"]
["2025-12-01",null,null,"x","x",null,null,null,null,null,"x",null,null,null,"x",null,null,"x"]
["2025-12-02",null,null,null,"x",null,null,null,null,null,"x",null,null,null,"x",null,null,"x"]
["2025-12-03",null,null,"x","x",null,null,null,null,null,"x",null,"x",null,"x",null,null,"x"]
["2025-12-04",null,null,"x","x",null,null,null,null,null,null,null,null,null,"x",null,null,"x"]
["2025-12-05",null,null,null,"x",null,null,null,null,null,"x",null,null,null,null,null,null,"x"]
["2025-12-06",null,null,"x",null,null,null,null,null,null,null,null,null,null,"x",null,null,"x"]
["2025-12-07",null,null,"x",null,null,null,null,null,null,null,null,null,null,"x",null,null,"x"]
["2025-12-08",null,null,"x",null,null,null,null,null,null,"x",null,null,null,"x",null,null,"x"]
["2025-12-09",null,null,null,null,null,null,null,null,null,null,null,null,null,"x",null,null,"x"]
["2025-12-10",null,null,"x",null,null,null,null,null,null,null,null,null,null,"x",null,null,"x"]
["2025-12-11",null,null,"x",null,null,null,null,null,null,null,null,null,null,"x",null,null,"x"]
["2025-12-12",null,null,null,null,null,null,null,null,null,null,null,null,null,"x",null,null,"x"]
["2025-12-13",null,null,"x",null,null,null,null,null,null,null,null,null,null,"x",null,null,"x"]
["2025-12-14",null,null,"x",null,null,null,null,null,null,null,null,null,null,"x",null,null,"x"]
["2025-12-15",null,null,"x","x",null,null,null,null,null,"x",null,null,null,null,null,"x","x"]
["2025-12-16",null,null,null,"x",null,null,null,null,null,"x",null,null,null,"x",null,null,"x"]
["2025-12-17",null,null,"x","x",null,null,null,null,null,"x",null,null,null,"x",null,null,"x"]
["2025-12-18",null,null,"x","x",null,null,null,null,null,"x",null,null,null,null,null,null,"x"]
["2025-12-19",null,null,null,"x",null,null,null,null,null,"x",null,null,null,null,null,null,"x"]
["2025-12-20",null,null,"x","x",null,null,null,null,null,null,null,null,null,"x",null,null,"x"]
["2025-12-21",null,null,"x","x",null,null,null,null,null,null,null,null,null,"x",null,null,"x"]
["2025-12-22",null,null,"x","x",null,null,null,null,null,null,null,null,null,"x",null,null,"x"]
["2025-12-23",null,null,null,"x",null,null,null,null,null,null,null,null,null,"x",null,null,"x"]
["2025-12-24",null,null,"x","x",null,null,null,null,null,null,null,null,null,"x",null,null,"x"]
["2025-12-25",null,null,"x","x",null,null,null,null,null,null,null,null,null,"x",null,null,"x"]
["2025-12-26",null,null,null,"x",null,null,null,null,null,null,null,null,null,"x",null,null,"x"]
["2025-12-27",null,null,"x","x",null,null,null,null,null,null,null,null,null,"x",null,null,"x"]
["2025-12-28",null,null,"x","x",null,null,null,null,null,null,null,null,null,"x",null,null,"x"]
["2025-12-29",null,null,"x","x",null,null,null,null,null,null,null,null,null,"x",null,null,"x"]
["2025-12-30",null,null,null,"x",null,null,null,null,null,null,null,null,null,"x",null,null,"x"]
["2025-12-31",null,null,"x","x",null,null,null,null,null,null,null,null,null,"x",null,null,"x"]
["2026-01-01",null,null,null,"x",null,null,null,null,null,null,"x"]
["2026-01-02",null,null,null,"x",null,null,null,null,null,null,"x"]
["2026-01-03",null,null,null,"x",null,null,null,null,null,null,"x"]
["2026-01-04",null,null,null,"x",null,null,null,null,null,null,"x"]
["2026-01-05",null,null,null,"x",null,"x",null,null,null,"x","x"]
["2026-01-06",null,null,null,"x",null,null,null,null,null,null,"x"]
["2026-01-07",null,null,null,null,null,"x",null,"x",null,null,"x","x"]
["2026-01-08",null,null,null,null,null,null,null,null,null,null,"x"]
["2026-01-09",null,null,null,"x",null,null,null,null,null,null,"x"]
["2026-01-10",null,null,null,"x",null,null,null,null,null,null,"x"]
["2026-01-11",null,null,null,"x",null,null,null,null,null,null,"x"]
["2026-01-12",null,null,null,"x",null,null,null,null,null,"x","x"]
["2026-01-13",null,null,null,"x",null,null,null,null,null,"x","x","x"]
["2026-01-14",null,null,null,"x",null,null,null,null,null,"x","x"]
["2026-01-15",null,null,null,null,null,"x",null,null,null,null,"x"]
["2026-01-16",null,null,null,null,null,null,null,null,null,"x","x"]
["2026-01-17",null,null,null,null,null,null,null,null,null,null,"x"]
["2026-01-18",null,null,null,null,null,null,null,null,null,null,"x"]
["2026-01-19",null,null,null,null,null,null,null,null,null,"x","x"]
["2026-01-20",null,null,null,null,null,"x",null,null,null,null,"x"]
["2026-01-21",null,null,null,null,null,null,null,null,null,null,"x"]
["2026-01-22",null,null,null,null,null,null,null,null,null,null,"x"]
["2026-01-23",null,null,null,null,null,null,null,null,null,null,"x",null,null,"X"]
["2026-01-24",null,null,null,null,null,null,null,null,null,null,"x"]
["2026-01-25",null,null,null,null,null,null,null,null,null,null,"x"]
["2026-01-26",null,null,null,null,null,null,null,"x",null,"x","x"]
["2026-01-27",null,null,null,null,null,null,null,"x",null,"x","x"]
["2026-01-28",null,null,null,null,null,null,null,"x",null,"x","x"]
["2026-01-29",null,null,null,null,null,null,null,"x",null,"x","x"]
["2026-01-30",null,null,null,null,null,null,null,"x",null,null,"x","x",null,"X"]
["2026-01-31",null,null,null,null,null,null,null,null,null,null,"x"]
["2026-02-01",null,null,null,null,null,null,null,null,null,null,"x"]
["2026-02-02",null,null,null,null,null,"x",null,null,null,"x","x","x",null,"X"]
["2026-02-03",null,null,null,null,null,"x",null,null,null,null,"x"]
["2026-02-04",null,null,null,null,null,"x",null,null,null,null,"x"]
["2026-02-05",null,null,null,null,null,"x",null,null,null,null,"x"]
["2026-02-06",null,null,null,null,null,"x",null,null,null,null,"x"]
["2026-02-07",null,null,null,null,null,null,null,null,null,null,"x"]
["2026-02-08",null,null,null,null,null,null,null,null,null,null,"x"]
["2026-02-09",null,null,null,null,null,null,null,null,null,"x","x"]
["2026-02-10",null,null,null,null,null,null,null,null,null,"x","x"]
["2026-02-11",null,null,null,null,null,null,null,null,"x","x","x"]
["2026-02-12",null,null,null,null,null,null,null,null,"x","x","x"]
["2026-02-13",null,null,null,null,null,null,null,null,"x","x","x"]
["2026-02-14",null,null,null,null,null,null,null,null,"x",null,"x"]
["2026-02-15",null,null,null,null,null,null,null,null,"x",null,"x"]
["2026-02-16",null,null,null,null,null,null,null,null,"x","x","x"]
["2026-02-17",null,null,null,null,null,null,null,null,"x","x","x"]
["2026-02-18",null,null,null,null,null,null,null,null,"x","x","x"]
["2026-02-19",null,null,null,null,null,null,null,null,"x",null,"x"]
["2026-02-20",null,null,null,null,null,null,null,null,"x",null,"x"]
["2026-02-21",null,null,null,null,null,null,null,null,"x",null,"x"]
["2026-02-22",null,null,null,null,null,null,null,null,"x",null,"x"]
["2026-02-23",null,null,null,null,null,null,null,null,"x","x","x"]
["2026-02-24",null,null,null,null,null,null,null,null,"x","x","x","x"]
["2026-02-25",null,null,null,null,null,null,null,null,"x","x","x"]
["2026-02-26",null,null,null,null,null,null,null,null,"x",null,"x"]
["2026-02-27",null,null,null,null,null,null,null,null,"x",null,"x",null,null,"X"]
["2026-02-28",null,null,null,null,null,null,null,null,"x",null,"x"]
["2026-03-01",null,null,null,null,null,null,null,null,"x",null,"x"]
["2026-03-02",null,null,null,null,null,null,null,null,"x","x","x"]
["2026-03-03",null,null,null,null,null,null,null,null,"x",null,"x"]
["2026-03-04",null,null,null,null,null,null,null,null,"x",null,"x","x"]
["2026-03-05",null,null,null,null,null,null,null,null,"x",null,"x"]
["2026-03-06",null,null,null,null,null,null,null,null,"x",null,"x"]
["2026-03-07",null,null,null,null,null,null,null,null,null,null,"x"]
["2026-03-08",null,null,null,null,null,null,null,null,null,null,"x"]
["2026-03-09",null,null,null,null,null,null,null,null,null,"x","x",null,null,"X"]
["2026-03-10",null,null,null,null,null,null,null,null,null,"x","x","x",null,"X"]
["2026-03-11",null,null,null,null,null,null,null,null,null,"x","x",null,null,"X"]
["2026-03-12",null,null,null,null,null,null,null,null,null,"x","x",null,null,"X"]
["2026-03-13",null,null,null,null,null,null,null,null,null,null,"x",null,null,"X"]
["2026-03-14",null,null,null,null,null,null,null,null,null,null,"x"]
["2026-03-15",null,null,null,null,null,null,null,null,null,null,"x"]
["2026-03-16",null,null,null,null,null,null,null,null,null,"x","x"]
["2026-03-17",null,null,null,null,null,null,null,null,null,"x","x"]
["2026-03-18",null,null,null,null,null,null,null,null,null,"x","x"]
["2026-03-19",null,null,null,null,null,null,null,null,null,"x","x"]
["2026-03-20",null,null,null,null,null,null,null,null,null,null,"x",null,null,"X"]
["2026-03-21",null,null,null,null,null,null,null,null,null,null,"x"]
["2026-03-22",null,null,null,null,null,null,null,null,null,null,"x"]
["2026-03-23",null,null,null,null,null,null,null,null,null,"x","x"]
["2026-03-24",null,null,null,null,null,null,null,null,null,"x","x"]
["2026-03-25",null,null,null,null,null,null,null,null,null,"x","x"]
["2026-03-26",null,null,null,null,null,null,null,null,null,null,"x"]
["2026-03-27",null,null,null,null,null,null,null,null,null,null,"x",null,null,"X"]
["2026-03-28",null,null,null,null,null,null,null,null,null,null,"x"]
["2026-03-29",null,null,null,null,null,null,null,null,null,null,"x"]
["2026-03-30",null,null,null,null,null,null,null,null,null,"x","x"]
["2026-03-31",null,null,null,null,null,null,null,null,null,null,"x"]

{"sheet":"Dienste","index":2,"n_rows":234,"n_cols":7,"rows_kept":234,"cut":false,"hidden":false,"merged":[]}
[null,"Frühstück","Kochen","Elternabend 1","Elternabend 2","Notdienst Essensausgabe","Putznotdienst"]
["2025-08-11","Vasu","Nicht benötigt","Nicht benötigt","Nicht benötigt","Theo","Enno"]
["2025-08-12","Ida W.","Nicht benötigt","Nicht benötigt","Nicht benötigt","Leo","Marina"]
["2025-08-13","Marina","Nicht benötigt","Nicht benötigt","Nicht benötigt","Enno","Theo"]
["2025-08-14","Paulina","Nicht benötigt","Nicht benötigt","Nicht benötigt","Marina","Ida W."]
["2025-08-15","Theo","Marina","Nicht benötigt","Nicht benötigt","Vasu","Feline"]
["2025-08-16","Nicht benötigt","Nicht benötigt","Nicht benötigt","Nicht benötigt","Nicht benötigt","Nicht benötigt"]
["2025-08-17","Nicht benötigt","Nicht benötigt","Nicht benötigt","Nicht benötigt","Nicht benötigt","Nicht benötigt"]
["2025-08-18","Leo","Nicht benötigt","Nicht benötigt","Nicht benötigt","Paulina","Ida E."]
["2025-08-19","Ida E.","Nicht benötigt","Nicht benötigt","Nicht benötigt","Ida W.","Leo"]
["2025-08-20","Feline","Nicht benötigt","Nicht benötigt","Nicht benötigt","Ida E.","Paulina"]
["2025-08-21","Enno","Nicht benötigt","Vasu","Marina","Feline","Ida W."]
["2025-08-22","Feline","Nicht benötigt","Nicht benötigt","Nicht benötigt","Paulina","Vasu"]
["2025-08-23","Nicht benötigt","Nicht benötigt","Nicht benötigt","Nicht benötigt","Nicht benötigt","Nicht benötigt"]
["2025-08-24","Nicht benötigt","Nicht benötigt","Nicht benötigt","Nicht benötigt","Nicht benötigt","Nicht benötigt"]
["2025-08-25","Ida E.","Nicht benötigt","Nicht benötigt","Nicht benötigt","Theo","Vasu"]
["2025-08-26","Enno","Nicht benötigt","Nicht benötigt","Nicht benötigt","Leo","Marina"]
["2025-08-27","Ida W.","Nicht benötigt","Nicht benötigt","Nicht benötigt","Feline","Theo"]
["2025-08-28","Marina","Nicht benötigt","Nicht benötigt","Nicht benötigt","Vasu","Paulina"]
["2025-08-29","Theo","Enno","Nicht benötigt","Nicht benötigt","Ida W.","Leo"]
["2025-08-30","Nicht benötigt","Nicht benötigt","Nicht benötigt","Nicht benötigt","Nicht benötigt","Nicht benötigt"]
["2025-08-31","Nicht benötigt","Nicht benötigt","Nicht benötigt","Nicht benötigt","Nicht benötigt","Nicht benötigt"]
["2025-09-01","Paulina","Nicht benötigt","Nicht benötigt","Nicht benötigt","Ida E.","Feline"]
["2025-09-02","Vasu","Nicht benötigt","Nicht benötigt","Nicht benötigt","Enno","Ida E."]
["2025-09-03","Leo","Nicht benötigt","Nicht benötigt","Nicht benötigt","Marina","Enno"]
["2025-09-04","Feline","Nicht benötigt","Nicht benötigt","Nicht benötigt","Paulina","Vasu"]
["2025-09-05","Enno","Nicht benötigt","Nicht benötigt","Nicht benötigt","Vasu","Marina"]
["2025-09-06","Nicht benötigt","Nicht benötigt","Nicht benötigt","Nicht benötigt","Nicht benötigt","Nicht benötigt"]
["2025-09-07","Nicht benötigt","Nicht benötigt","Nicht benötigt","Nicht benötigt","Nicht benötigt","Nicht benötigt"]
["2025-09-08","Nicht benötigt","Nicht benötigt","Nicht benötigt","Nicht benötigt","Nicht benötigt","Nicht benötigt"]
["2025-09-09","Theo","Nicht benötigt","Nicht benötigt","Nicht benötigt","Ida E.","Enno"]
["2025-09-10","Vasu","Nicht benötigt","Nicht benötigt","Nicht benötigt","Ida W.","Leo"]
["2025-09-11","Marius","Nicht benötigt","Nicht benötigt","Nicht benötigt","Marina","Feline"]
["2025-09-12","Remo","Marius","Nicht benötigt","Nicht benötigt","Enno","Ida W."]
["2025-09-13","Nicht benötigt","Nicht benötigt","Nicht benötigt","Nicht benötigt","Nicht benötigt","Nicht benötigt"]
["2025-09-14","Nicht benötigt","Nicht benötigt","Nicht benötigt","Nicht benötigt","Nicht benötigt","Nicht benötigt"]
["2025-09-15","Nicht benötigt","Nicht benötigt","Nicht benötigt","Nicht benötigt","Nicht benötigt","Nicht benötigt"]
["2025-09-16","Maja & Sophie","Nicht benötigt","Nicht benötigt","Nicht benötigt","Marius","Maja & Sophie"]
["2025-09-17","Remo","Nicht benötigt","Nicht benötigt","Nicht benötigt","Leo","Marius"]
["2025-09-18","Jakob","Nicht benötigt","Enno","Paulina","Remo","Theo"]
["2025-09-19","Marius","Nicht benötigt","Nicht benötigt","Nicht benötigt","Jakob","Paulina"]
["2025-09-20","Nicht benötigt","Nicht benötigt","Nicht benötigt","Nicht benötigt","Nicht benötigt","Nicht benötigt"]
["2025-09-21","Nicht benötigt","Nicht benötigt","Nicht benötigt","Nicht benötigt","Nicht benötigt","Nicht benötigt"]
["2025-09-22","Jakob","Nicht benötigt","Nicht benötigt","Nicht benötigt","Remo","Marius"]
["2025-09-23","Paulina","Nicht benötigt","Nicht benötigt","Nicht benötigt","Jakob","Remo"]
["2025-09-24","Leo","Nicht benötigt","Nicht benötigt","Nicht benötigt","Marius","Jakob"]
["2025-09-25","Ida W.","Nicht benötigt","Nicht benötigt","Nicht benötigt","Theo","Ida E."]
["2025-09-26","Ida E.","Theo","Nicht benötigt","Nicht benötigt","Feline","Ida W."]
["2025-09-27","Nicht benötigt","Nicht benötigt","Nicht benötigt","Nicht benötigt","Nicht benötigt","Nicht benötigt"]
["2025-09-28","Nicht benötigt","Nicht benötigt","Nicht benötigt","Nicht benötigt","Nicht benötigt","Nicht benötigt"]
["2025-09-29","Matej","Nicht benötigt","Nicht benötigt","Nicht benötigt","Remo","Jakob"]
["2025-09-30","Jakob","Nicht benötigt","Nicht benötigt","Nicht benötigt","Matej","Marius"]
["2025-10-01","Paulina","Nicht benötigt","Nicht benötigt","Nicht benötigt","Jakob","Matej"]
["2025-10-02","Theo","Nicht benötigt","Nicht benötigt","Nicht benötigt","Paulina","Enno"]
["2025-10-03","Nicht benötigt","Nicht benötigt","Nicht benötigt","Nicht benötigt","Nicht benötigt","Nicht benötigt"]
["2025-10-04","Nicht benötigt","Nicht benötigt","Nicht benötigt","Nicht benötigt","Nicht benötigt","Nicht benötigt"]
["2025-10-05","Nicht benötigt","Nicht benötigt","Nicht benötigt","Nicht benötigt","Nicht benötigt","Nicht benötigt"]
["2025-10-06","Maja & Sophie","Nicht benötigt","Nicht benötigt","Nicht benötigt","Matej","Remo"]
["2025-10-07","Marlene","Nicht benötigt","Nicht benötigt","Nicht benötigt","Maja & Sophie","Matej"]
["2025-10-08","Matej","Nicht benötigt","Nicht benötigt","Nicht benötigt","Maja & Sophie","Marlene"]
["2025-10-09","Maja & Sophie","Nicht benötigt","Theo","Feline","Marlene","Jakob"]
["2025-10-10","Marina","Jakob","Nicht benötigt","Nicht benötigt","Feline","Maja & Sophie"]
["2025-10-11","Nicht benötigt","Nicht benötigt","Nicht benötigt","Nicht benötigt","Nicht benötigt","Nicht benötigt"]
["2025-10-12","Nicht benötigt","Nicht benötigt","Nicht benötigt","Nicht benötigt","Nicht benötigt","Nicht benötigt"]
["2025-10-13","Elina","Nicht benötigt","Nicht benötigt","Nicht benötigt","Maja & Sophie","Marlene"]
["2025-10-14","Marlene","Nicht benötigt","Nicht benötigt","Nicht benötigt","Maja & Sophie","Remo"]
["2025-10-15","Maja & Sophie","Nicht benötigt","Nicht benötigt","Nicht benötigt","Elina","Matej"]
["2025-10-16","Marius","Nicht benötigt","Nicht benötigt","Nicht benötigt","Matej","Elina"]
["2025-10-17","Remo","Nicht benötigt","Nicht benötigt","Nicht benötigt","Marlene","Maja & Sophie"]
["2025-10-18","Nicht benötigt","Nicht benötigt","Nicht benötigt","Nicht benötigt","Nicht benötigt","Nicht benötigt"]
["2025-10-19","Nicht benötigt","Nicht benötigt","Nicht benötigt","Nicht benötigt","Nicht benötigt","Nicht benötigt"]
["2025-10-20","Elina","Nicht benötigt","Nicht benötigt","Nicht benötigt","Maja & Sophie","Leo"]
["2025-10-21","Matej","Nicht benötigt","Nicht benötigt","Nicht benötigt","Maja & Sophie","Paulina"]
["2025-10-22","Maja & Sophie","Nicht benötigt","Nicht benötigt","Nicht benötigt","Marius","Theo"]
["2025-10-23","Marlene","Nicht benötigt","Nicht benötigt","Nicht benötigt","Elina","Jakob"]
["2025-10-24","Maja & Sophie","Vasu","Nicht benötigt","Nicht benötigt","Marlene","Elina"]
["2025-10-25","Nicht benötigt","Nicht benötigt","Nicht benötigt","Nicht benötigt","Nicht benötigt","Nicht benötigt"]
["2025-10-26","Nicht benötigt","Nicht benötigt","Nicht benötigt","Nicht benötigt","Nicht benötigt","Nicht benötigt"]
["2025-10-27","Elina","Nicht benötigt","Nicht benötigt","Nicht benötigt","Matej","Maja & Sophie"]
["2025-10-28","Ida W.","Nicht benötigt","Nicht benötigt","Nicht benötigt","Elina","Maja & Sophie"]
["2025-10-29","Vasu","Nicht benötigt","Nicht benötigt","Nicht benötigt","Remo","Elina"]
["2025-10-30","Maja & Sophie","Nicht benötigt","Nicht benötigt","Nicht benötigt","Marina","Remo"]
["2025-10-31","Nicht benötigt","Nicht benötigt","Nicht benötigt","Nicht benötigt","Nicht benötigt","Nicht benötigt"]
["2025-11-01","Nicht benötigt","Nicht benötigt","Nicht benötigt","Nicht benötigt","Nicht benötigt","Nicht benötigt"]
["2025-11-02","Nicht benötigt","Nicht benötigt","Nicht benötigt","Nicht benötigt","Nicht benötigt","Nicht benötigt"]
["2025-11-03","Remo","Nicht benötigt","Nicht benötigt","Nicht benötigt","Enno","Maja & Sophie"]
["2025-11-04","Matej","Nicht benötigt","Nicht benötigt","Nicht benötigt","Elina","Vasu"]
["2025-11-05","Marina","Nicht benötigt","Nicht benötigt","Nicht benötigt","Vasu","Matej"]
["2025-11-06","Elina","Nicht benötigt","Nicht benötigt","Nicht benötigt","Theo","Marius"]
["2025-11-07","Ida E.","Remo","Nicht benötigt","Nicht benötigt","Ida W.","Marina"]
["2025-11-08","Nicht benötigt","Nicht benötigt","Nicht benötigt","Nicht benötigt","Nicht benötigt","Nicht benötigt"]
["2025-11-09","Nicht benötigt","Nicht benötigt","Nicht benötigt","Nicht benötigt","Nicht benötigt","Nicht benötigt"]
["2025-11-10","Leo","Nicht benötigt","Nicht benötigt","Nicht benötigt","Marius","Feline"]
["2025-11-11","Feline","Nicht benötigt","Nicht benötigt","Nicht benötigt","Leo","Maja & Sophie"]
["2025-11-12","Enno","Nicht benötigt","Nicht benötigt","Nicht benötigt","Maja & Sophie","Remo"]
["2025-11-13","Jakob","Nicht benötigt","Nicht benötigt","Nicht benötigt","Matej","Ida W."]
["2025-11-14","Maja & Sophie","Nicht benötigt","Nicht benötigt","Nicht benötigt","Jakob","Ida E."]
["2025-11-15","Nicht benötigt","Nicht benötigt","Nicht benötigt","Nicht benötigt","Nicht benötigt","Nicht benötigt"]
["2025-11-16","Nicht benötigt","Nicht benötigt","Nicht benötigt","Nicht benötigt","Nicht benötigt","Nicht benötigt"]
["2025-11-17","Marius","Nicht benötigt","Nicht benötigt","Nicht benötigt","Marlene","Elina"]
["2025-11-18","Maja & Sophie","Nicht benötigt","Nicht benötigt","Nicht benötigt","Ida E.","Matej"]
["2025-11-19","Marlene","Nicht benötigt","Nicht benötigt","Nicht benötigt","Maja & Sophie","Leo"]
["2025-11-20","Ida W.","Nicht benötigt","Matej","Jakob","Marius","Paulina"]
["2025-11-21","Vasu","Maja & Sophie","Nicht benötigt","Nicht benötigt","Enno","Marlene"]
["2025-11-22","Nicht benötigt","Nicht benötigt","Nicht benötigt","Nicht benötigt","Nicht benötigt","Nicht benötigt"]
["2025-11-23","Nicht benötigt","Nicht benötigt","Nicht benötigt","Nicht benötigt","Nicht benötigt","Nicht benötigt"]
["2025-11-24","Leo","Nicht benötigt","Nicht benötigt","Nicht benötigt","Jakob","Maja & Sophie"]
["2025-11-25","Theo","Nicht benötigt","Nicht benötigt","Nicht benötigt","Feline","Enno"]
["2025-11-26","Matej","Nicht benötigt","Nicht benötigt","Nicht benötigt","Remo","Feline"]
["2025-11-27","Jakob","Nicht benötigt","Nicht benötigt","Nicht benötigt","Maja & Sophie","Marius"]
["2025-11-28","Enno","Nicht benötigt","Nicht benötigt","Nicht benötigt","Vasu","Marlene"]
["2025-11-29","Nicht benötigt","Nicht benötigt","Nicht benötigt","Nicht benötigt","Nicht benötigt","Nicht benötigt"]
["2025-11-30","Nicht benötigt","Nicht benötigt","Nicht benötigt","Nicht benötigt","Nicht benötigt","Nicht benötigt"]
["2025-12-01","Paulina","Nicht benötigt","Nicht benötigt","Nicht benötigt","Marina","Vasu"]
["2025-12-02","Remo","Nicht benötigt","Nicht benötigt","Nicht benötigt","Ida E.","Jakob"]
["2025-12-03","Marina","Nicht benötigt","Nicht benötigt","Nicht benötigt","Paulina","Theo"]
["2025-12-04","Marius","Nicht benötigt","Nicht benötigt","Nicht benötigt","Leo","Marina"]
["2025-12-05","Marlene","Ida E.","Nicht benötigt","Nicht benötigt","Theo","Maja & Sophie"]
["2025-12-06","Nicht benötigt","Nicht benötigt","Nicht benötigt","Nicht benötigt","Nicht benötigt","Nicht benötigt"]
["2025-12-07","Nicht benötigt","Nicht benötigt","Nicht benötigt","Nicht benötigt","Nicht benötigt","Nicht benötigt"]
["2025-12-08","Feline","Nicht benötigt","Nicht benötigt","Nicht benötigt","Ida W.","Maja & Sophie"]
["2025-12-09","Elina","Nicht benötigt","Nicht benötigt","Nicht benötigt","Maja & Sophie","Ida E."]
["2025-12-10","Maja & Sophie","Nicht benötigt","Nicht benötigt","Nicht benötigt","Elina","Feline"]
["2025-12-11","Remo","Nicht benötigt","Nicht benötigt","Nicht benötigt","Jakob","Elina"]
["2025-12-12","Nicht benötigt","Nicht benötigt","Nicht benötigt","Nicht benötigt","Nicht benötigt","Nicht benötigt"]
["2025-12-13","Nicht benötigt","Nicht benötigt","Nicht benötigt","Nicht benötigt","Nicht benötigt","Nicht benötigt"]
["2025-12-14","Nicht benötigt","Nicht benötigt","Nicht benötigt","Nicht benötigt","Nicht benötigt","Nicht benötigt"]
["2025-12-15","Vasu","Nicht benötigt","Nicht benötigt","Nicht benötigt","Marlene","Maja & Sophie"]
["2025-12-16","Ida E.","Nicht benötigt","Nicht benötigt","Nicht benötigt","Theo","Marius"]
["2025-12-17","Marina","Nicht benötigt","Nicht benötigt","Nicht benötigt","Matej","Paulina"]
["2025-12-18","Theo","Nicht benötigt","Nicht benötigt","Nicht benötigt","Enno","Marlene"]
["2025-12-19","Jakob","Matej","Nicht benötigt","Nicht benötigt","Marius","Remo"]
["2025-12-20","Nicht benötigt","Nicht benötigt","Nicht benötigt","Nicht benötigt","Nicht benötigt","Nicht benötigt"]
["2025-12-21","Nicht benötigt","Nicht benötigt","Nicht benötigt","Nicht benötigt","Nicht benötigt","Nicht benötigt"]
["2025-12-22","Nicht benötigt","Nicht benötigt","Nicht benötigt","Nicht benötigt","Nicht benötigt","Nicht benötigt"]
["2025-12-23","Nicht benötigt","Nicht benötigt","Nicht benötigt","Nicht benötigt","Nicht benötigt","Nicht benötigt"]
["2025-12-24","Nicht benötigt","Nicht benötigt","Nicht benötigt","Nicht benötigt","Nicht benötigt","Nicht benötigt"]
["2025-12-25","Nicht benötigt","Nicht benötigt","Nicht benötigt","Nicht benötigt","Nicht benötigt","Nicht benötigt"]
["2025-12-26","Nicht benötigt","Nicht benötigt","Nicht benötigt","Nicht benötigt","Nicht benötigt","Nicht benötigt"]
["2025-12-27","Nicht benötigt","Nicht benötigt","Nicht benötigt","Nicht benötigt","Nicht benötigt","Nicht benötigt"]
["2025-12-28","Nicht benötigt","Nicht benötigt","Nicht benötigt","Nicht benötigt","Nicht benötigt","Nicht benötigt"]
["2025-12-29","Nicht benötigt","Nicht benötigt","Nicht benötigt","Nicht benötigt","Nicht benötigt","Nicht benötigt"]
["2025-12-30","Nicht benötigt","Nicht benötigt","Nicht benötigt","Nicht benötigt","Nicht benötigt","Nicht benötigt"]
["2025-12-31","Nicht benötigt","Nicht benötigt","Nicht benötigt","Nicht benötigt","Nicht benötigt","Nicht benötigt"]
["2026-01-01","Nicht benötigt","Nicht benötigt","Nicht benötigt","Nicht benötigt","Nicht benötigt","Nicht benötigt"]
["2026-01-02","Nicht benötigt","Nicht benötigt","Nicht benötigt","Nicht benötigt","Nicht benötigt","Nicht benötigt"]
["2026-01-03","Nicht benötigt","Nicht benötigt","Nicht benötigt","Nicht benötigt","Nicht benötigt","Nicht benötigt"]
["2026-01-04","Nicht benötigt","Nicht benötigt","Nicht benötigt","Nicht benötigt","Nicht benötigt","Nicht benötigt"]
["2026-01-05",null,"Nicht benötigt","Nicht benötigt","Nicht benötigt","Feline","Leo"]
["2026-01-06","Vasu","Nicht benötigt","Nicht benötigt","Nicht benötigt",null,"Marlene"]
["2026-01-07","Feline","Nicht benötigt","Nicht benötigt","Nicht benötigt","Paulina"]
["2026-01-08","Ida E.","Nicht benötigt","Nicht benötigt","Nicht benötigt","Matej","Marina"]
["2026-01-09","Marlene","Feline","Nicht benötigt","Nicht benötigt","Elina","Matej"]
["2026-01-10","Nicht benötigt","Nicht benötigt","Nicht benötigt","Nicht benötigt","Nicht benötigt","Nicht benötigt"]
["2026-01-11","Nicht benötigt","Nicht benötigt","Nicht benötigt","Nicht benötigt","Nicht benötigt","Nicht benötigt"]
["2026-01-12",null,"Nicht benötigt","Nicht benötigt","Nicht benötigt","Marlene","Maja & Sophie"]
["2026-01-13","Enno","Nicht benötigt","Nicht benötigt","Nicht benötigt",null,"Ida E."]
["2026-01-14","Remo","Nicht benötigt","Nicht benötigt","Nicht benötigt","Theo"]
["2026-01-15","Ida W.","Nicht benötigt","Feline","Matej","Ida E.","Enno"]
["2026-01-16","Theo","Nicht benötigt","Nicht benötigt","Nicht benötigt","Enno","Paulina"]
["2026-01-17","Nicht benötigt","Nicht benötigt","Nicht benötigt","Nicht benötigt","Nicht benötigt","Nicht benötigt"]
["2026-01-18","Nicht benötigt","Nicht benötigt","Nicht benötigt","Nicht benötigt","Nicht benötigt","Nicht benötigt"]
["2026-01-19",null,"Nicht benötigt","Nicht benötigt","Nicht benötigt","Ida W.","Maja & Sophie"]
["2026-01-20","Elina","Nicht benötigt","Nicht benötigt","Nicht benötigt",null,"Ida W."]
["2026-01-21","Maja & Sophie","Nicht benötigt","Nicht benötigt","Nicht benötigt","Marina"]
["2026-01-22","Marina","Nicht benötigt","Nicht benötigt","Nicht benötigt","Maja & Sophie","Elina"]
["2026-01-23","Theo","Ida W.","Nicht benötigt","Nicht benötigt","Vasu","Marina"]
["2026-01-24","Nicht benötigt","Nicht benötigt","Nicht benötigt","Nicht benötigt","Nicht benötigt","Nicht benötigt"]
["2026-01-25","Nicht benötigt","Nicht benötigt","Nicht benötigt","Nicht benötigt","Nicht benötigt","Nicht benötigt"]
["2026-01-26",null,"Nicht benötigt","Nicht benötigt","Nicht benötigt","Remo","Paulina"]
["2026-01-27","Feline","Nicht benötigt","Nicht benötigt","Nicht benötigt",null,"Marius"]
["2026-01-28","Ida E.","Nicht benötigt","Nicht benötigt","Nicht benötigt","Marlene"]
["2026-01-29","Elina","Nicht benötigt","Nicht benötigt","Nicht benötigt","Ida E.","Feline"]
["2026-01-30","Remo","Nicht benötigt","Nicht benötigt","Nicht benötigt","Feline","Enno"]
["2026-01-31","Nicht benötigt","Nicht benötigt","Nicht benötigt","Nicht benötigt","Nicht benötigt","Nicht benötigt"]
["2026-02-01","Nicht benötigt","Nicht benötigt","Nicht benötigt","Nicht benötigt","Nicht benötigt","Nicht benötigt"]
["2026-02-02",null,"Nicht benötigt","Nicht benötigt","Nicht benötigt","Matej","Remo"]
["2026-02-03","Paulina","Nicht benötigt","Nicht benötigt","Nicht benötigt",null,"Matej"]
["2026-02-04","Vasu","Nicht benötigt","Nicht benötigt","Nicht benötigt","Maja & Sophie"]
["2026-02-05","Ida W.","Nicht benötigt","Nicht benötigt","Nicht benötigt","Paulina","Maja & Sophie"]
["2026-02-06","Leo","Marlene","Nicht benötigt","Nicht benötigt","Marius","Vasu"]
["2026-02-07","Nicht benötigt","Nicht benötigt","Nicht benötigt","Nicht benötigt","Nicht benötigt","Nicht benötigt"]
["2026-02-08","Nicht benötigt","Nicht benötigt","Nicht benötigt","Nicht benötigt","Nicht benötigt","Nicht benötigt"]
["2026-02-09",null,"Nicht benötigt","Nicht benötigt","Nicht benötigt","Marlene","Leo"]
["2026-02-10","Matej","Nicht benötigt","Nicht benötigt","Nicht benötigt",null,"Marlene"]
["2026-02-11","Maja & Sophie","Nicht benötigt","Nicht benötigt","Nicht benötigt","Ida W."]
["2026-02-12","Enno","Nicht benötigt","Nicht benötigt","Nicht benötigt","Leo","Ida W."]
["2026-02-13","Marius","Nicht benötigt","Nicht benötigt","Nicht benötigt","Theo","Ida E."]
["2026-02-14","Nicht benötigt","Nicht benötigt","Nicht benötigt","Nicht benötigt","Nicht benötigt","Nicht benötigt"]
["2026-02-15","Nicht benötigt","Nicht benötigt","Nicht benötigt","Nicht benötigt","Nicht benötigt","Nicht benötigt"]
["2026-02-16",null,"Nicht benötigt","Nicht benötigt","Nicht benötigt","Marina","Marlene"]
["2026-02-17","Maja & Sophie","Nicht benötigt","Nicht benötigt","Nicht benötigt","Enno","Theo"]
["2026-02-18","Leo","Nicht benötigt","Nicht benötigt","Nicht benötigt",null,"Maja & Sophie"]
["2026-02-19","Elina","Nicht benötigt","Marina","Marlene","Maja & Sophie"]
["2026-02-20","Marlene","Elina","Nicht benötigt","Nicht benötigt","Matej","Paulina"]
["2026-02-21","Nicht benötigt","Nicht benötigt","Nicht benötigt","Nicht benötigt","Nicht benötigt","Nicht benötigt"]
["2026-02-22","Nicht benötigt","Nicht benötigt","Nicht benötigt","Nicht benötigt","Nicht benötigt","Nicht benötigt"]
["2026-02-23","Ida E.","Nicht benötigt","Nicht benötigt","Nicht benötigt","Maja & Sophie","Enno"]
["2026-02-24","Marius","Nicht benötigt","Nicht benötigt","Nicht benötigt","Paulina","Marina"]
["2026-02-25","Enno","Nicht benötigt","Nicht benötigt","Nicht benötigt","Marlene","Theo"]
["2026-02-26","Maja & Sophie","Nicht benötigt","Nicht benötigt","Nicht benötigt","Elina"]
["2026-02-27","Paulina","Nicht benötigt","Nicht benötigt","Nicht benötigt","Feline","Elina"]
["2026-02-28","Nicht benötigt","Nicht benötigt","Nicht benötigt","Nicht benötigt","Nicht benötigt","Nicht benötigt"]
["2026-03-01","Nicht benötigt","Nicht benötigt","Nicht benötigt","Nicht benötigt","Nicht benötigt","Nicht benötigt"]
["2026-03-02","Theo","Nicht benötigt","Nicht benötigt","Nicht benötigt","Marina","Remo"]
["2026-03-03","Elina","Nicht benötigt","Nicht benötigt","Nicht benötigt","Enno","Marius"]
["2026-03-04","Feline","Nicht benötigt","Nicht benötigt","Nicht benötigt","Ida W.","Matej"]
["2026-03-05","Remo","Nicht benötigt","Nicht benötigt","Nicht benötigt","Theo","Maja & Sophie"]
["2026-03-06","Marlene",null,"Nicht benötigt","Nicht benötigt","Ida E.","Leo"]
["2026-03-07","Nicht benötigt","Nicht benötigt","Nicht benötigt","Nicht benötigt","Nicht benötigt","Nicht benötigt"]
["2026-03-08","Nicht benötigt","Nicht benötigt","Nicht benötigt","Nicht benötigt","Nicht benötigt","Nicht benötigt"]
["2026-03-09",null,"Nicht benötigt","Nicht benötigt","Nicht benötigt","Remo","Vasu"]
["2026-03-10","Vasu","Nicht benötigt","Nicht benötigt","Nicht benötigt","Leo","Feline"]
["2026-03-11","Ida W.","Nicht benötigt","Nicht benötigt","Nicht benötigt","Marius","Ida E."]
["2026-03-12","Marina","Nicht benötigt","Nicht benötigt","Nicht benötigt","Vasu","Ida W."]
["2026-03-13","Matej","Nicht benötigt","Nicht benötigt","Nicht benötigt",null,"Elina"]
["2026-03-14","Nicht benötigt","Nicht benötigt","Nicht benötigt","Nicht benötigt","Nicht benötigt","Nicht benötigt"]
["2026-03-15","Nicht benötigt","Nicht benötigt","Nicht benötigt","Nicht benötigt","Nicht benötigt","Nicht benötigt"]
["2026-03-16","Maja & Sophie","Nicht benötigt","Nicht benötigt","Nicht benötigt","Matej","Marlene"]
["2026-03-17","Marina","Nicht benötigt","Nicht benötigt","Nicht benötigt","Maja & Sophie","Leo"]
["2026-03-18","Matej","Nicht benötigt","Nicht benötigt","Nicht benötigt","Marlene","Maja & Sophie"]
["2026-03-19",null,"Nicht benötigt","Paulina","Theo","Feline","Marius"]
["2026-03-20","Enno","Marina","Nicht benötigt","Nicht benötigt","Elina","Matej"]
["2026-03-21","Nicht benötigt","Nicht benötigt","Nicht benötigt","Nicht benötigt","Nicht benötigt","Nicht benötigt"]
["2026-03-22","Nicht benötigt","Nicht benötigt","Nicht benötigt","Nicht benötigt","Nicht benötigt","Nicht benötigt"]
["2026-03-23","Vasu","Nicht benötigt","Nicht benötigt","Nicht benötigt","Paulina","Theo"]
["2026-03-24","Remo","Nicht benötigt","Nicht benötigt","Nicht benötigt","Enno","Paulina"]
["2026-03-25","Ida E.","Nicht benötigt","Nicht benötigt","Nicht benötigt","Remo","Vasu"]
["2026-03-26","Ida W.","Nicht benötigt","Nicht benötigt","Nicht benötigt","Marina","Maja & Sophie"]
["2026-03-27","Leo","Nicht benötigt","Nicht benötigt","Nicht benötigt","Theo","Ida W."]
["2026-03-28","Nicht benötigt","Nicht benötigt","Nicht benötigt","Nicht benötigt","Nicht benötigt","Nicht benötigt"]
["2026-03-29","Nicht benötigt","Nicht benötigt","Nicht benötigt","Nicht benötigt","Nicht benötigt","Nicht benötigt"]
["2026-03-30","Theo","Nicht benötigt","Nicht benötigt","Nicht benötigt","Ida W.","Marina"]
["2026-03-31","Feline","Nicht benötigt","Nicht benötigt","Nicht benötigt",null,"Ida E."]

{"sheet":"Dienstplan","index":3,"n_rows":234,"n_cols":7,"rows_kept":234,"cut":false,"hidden":false,"merged":[]}
[null,"Frühstück","Kochen","Elternabend 1","Elternabend 2","Notdienst Essensausgabe","Putznotdienst"]
["2025-08-11","Vasu","Nicht benötigt","Nicht benötigt","Nicht benötigt","Theo","Enno"]
["2025-08-12","Ida W.","Nicht benötigt","Nicht benötigt","Nicht benötigt","Leo","Marina"]
["2025-08-13","Marina","Nicht benötigt","Nicht benötigt","Nicht benötigt","Enno","Theo"]
["2025-08-14","Paulina","Nicht benötigt","Nicht benötigt","Nicht benötigt","Marina","Ida W."]
["2025-08-15","Theo","Marina","Nicht benötigt","Nicht benötigt","Vasu","Feline"]
["2025-08-16","Nicht benötigt","Nicht benötigt","Nicht benötigt","Nicht benötigt","Nicht benötigt","Nicht benötigt"]
["2025-08-17","Nicht benötigt","Nicht benötigt","Nicht benötigt","Nicht benötigt","Nicht benötigt","Nicht benötigt"]
["2025-08-18","Leo","Nicht benötigt","Nicht benötigt","Nicht benötigt","Paulina","Ida E."]
["2025-08-19","Ida E.","Nicht benötigt","Nicht benötigt","Nicht benötigt","Ida W.","Leo"]
["2025-08-20","Feline","Nicht benötigt","Nicht benötigt","Nicht benötigt","Ida E.","Paulina"]
["2025-08-21","Enno","Nicht benötigt","Vasu","Marina","Feline","Ida W."]
["2025-08-22","Feline","Nicht benötigt","Nicht benötigt","Nicht benötigt","Paulina","Vasu"]
["2025-08-23","Nicht benötigt","Nicht benötigt","Nicht benötigt","Nicht benötigt","Nicht benötigt","Nicht benötigt"]
["2025-08-24","Nicht benötigt","Nicht benötigt","Nicht benötigt","Nicht benötigt","Nicht benötigt","Nicht benötigt"]
["2025-08-25","Ida E.","Nicht benötigt","Nicht benötigt","Nicht benötigt","Theo","Vasu"]
["2025-08-26","Enno","Nicht benötigt","Nicht benötigt","Nicht benötigt","Leo","Marina"]
["2025-08-27","Ida W.","Nicht benötigt","Nicht benötigt","Nicht benötigt","Feline","Theo"]
["2025-08-28","Marina","Nicht benötigt","Nicht benötigt","Nicht benötigt","Vasu","Paulina"]
["2025-08-29","Theo","Enno","Nicht benötigt","Nicht benötigt","Ida W.","Leo"]
["2025-08-30","Nicht benötigt","Nicht benötigt","Nicht benötigt","Nicht benötigt","Nicht benötigt","Nicht benötigt"]
["2025-08-31","Nicht benötigt","Nicht benötigt","Nicht benötigt","Nicht benötigt","Nicht benötigt","Nicht benötigt"]
["2025-09-01","Paulina","Nicht benötigt","Nicht benötigt","Nicht benötigt","Ida E.","Feline"]
["2025-09-02","Vasu","Nicht benötigt","Nicht benötigt","Nicht benötigt","Enno","Ida E."]
["2025-09-03","Leo","Nicht benötigt","Nicht benötigt","Nicht benötigt","Marina","Enno"]
["2025-09-04","Feline","Nicht benötigt","Nicht benötigt","Nicht benötigt","Paulina","Vasu"]
["2025-09-05","Enno","Nicht benötigt","Nicht benötigt","Nicht benötigt","Vasu","Marina"]
["2025-09-06","Nicht benötigt","Nicht benötigt","Nicht benötigt","Nicht benötigt","Nicht benötigt","Nicht benötigt"]
["2025-09-07","Nicht benötigt","Nicht benötigt","Nicht benötigt","Nicht benötigt","Nicht benötigt","Nicht benötigt"]
["2025-09-08","Nicht benötigt","Nicht benötigt","Nicht benötigt","Nicht benötigt","Nicht benötigt","Nicht benötigt"]
["2025-09-09","Theo","Nicht benötigt","Nicht benötigt","Nicht benötigt","Ida E.","Enno"]
["2025-09-10","Vasu","Nicht benötigt","Nicht benötigt","Nicht benötigt","Ida W.","Leo"]
["2025-09-11","Marius","Nicht benötigt","Nicht benötigt","Nicht benötigt","Marina","Feline"]
["2025-09-12","Remo","Marius","Nicht benötigt","Nicht benötigt","Enno","Ida W."]
["2025-09-13","Nicht benötigt","Nicht benötigt","Nicht benötigt","Nicht benötigt","Nicht benötigt","Nicht benötigt"]
["2025-09-14","Nicht benötigt","Nicht benötigt","Nicht benötigt","Nicht benötigt","Nicht benötigt","Nicht benötigt"]
["2025-09-15","Nicht benötigt","Nicht benötigt","Nicht benötigt","Nicht benötigt","Nicht benötigt","Nicht benötigt"]
["2025-09-16","Maja & Sophie","Nicht benötigt","Nicht benötigt","Nicht benötigt","Marius","Maja & Sophie"]
["2025-09-17","Remo","Nicht benötigt","Nicht benötigt","Nicht benötigt","Leo","Marius"]
["2025-09-18","Jakob","Nicht benötigt","Enno","Paulina","Remo","Theo"]
["2025-09-19","Marius","Nicht benötigt","Nicht benötigt","Nicht benötigt","Jakob","Paulina"]
["2025-09-20","Nicht benötigt","Nicht benötigt","Nicht benötigt","Nicht benötigt","Nicht benötigt","Nicht benötigt"]
["2025-09-21","Nicht benötigt","Nicht benötigt","Nicht benötigt","Nicht benötigt","Nicht benötigt","Nicht benötigt"]
["2025-09-22","Jakob","Nicht benötigt","Nicht benötigt","Nicht benötigt","Remo","Marius"]
["2025-09-23","Paulina","Nicht benötigt","Nicht benötigt","Nicht benötigt","Jakob","Remo"]
["2025-09-24","Leo","Nicht benötigt","Nicht benötigt","Nicht benötigt","Marius","Jakob"]
["2025-09-25","Ida W.","Nicht benötigt","Nicht benötigt","Nicht benötigt","Theo","Ida E."]
["2025-09-26","Ida E.","Theo","Nicht benötigt","Nicht benötigt","Feline","Ida W."]
["2025-09-27","Nicht benötigt","Nicht benötigt","Nicht benötigt","Nicht benötigt","Nicht benötigt","Nicht benötigt"]
["2025-09-28","Nicht benötigt","Nicht benötigt","Nicht benötigt","Nicht benötigt","Nicht benötigt","Nicht benötigt"]
["2025-09-29","Matej","Nicht benötigt","Nicht benötigt","Nicht benötigt","Remo","Jakob"]
["2025-09-30","Jakob","Nicht benötigt","Nicht benötigt","Nicht benötigt","Matej","Marius"]
["2025-10-01","Paulina","Nicht benötigt","Nicht benötigt","Nicht benötigt","Jakob","Matej"]
["2025-10-02","Theo","Nicht benötigt","Nicht benötigt","Nicht benötigt","Paulina","Enno"]
["2025-10-03","Nicht benötigt","Nicht benötigt","Nicht benötigt","Nicht benötigt","Nicht benötigt","Nicht benötigt"]
["2025-10-04","Nicht benötigt","Nicht benötigt","Nicht benötigt","Nicht benötigt","Nicht benötigt","Nicht benötigt"]
["2025-10-05","Nicht benötigt","Nicht benötigt","Nicht benötigt","Nicht benötigt","Nicht benötigt","Nicht benötigt"]
["2025-10-06","Maja & Sophie","Nicht benötigt","Nicht benötigt","Nicht benötigt","Matej","Remo"]
["2025-10-07","Marlene","Nicht benötigt","Nicht benötigt","Nicht benötigt","Maja & Sophie","Matej"]
["2025-10-08","Matej","Nicht benötigt","Nicht benötigt","Nicht benötigt","Maja & Sophie","Marlene"]
["2025-10-09","Maja & Sophie","Nicht benötigt","Theo","Feline","Marlene","Jakob"]
["2025-10-10","Marina","Jakob","Nicht benötigt","Nicht benötigt","Feline","Maja & Sophie"]
["2025-10-11","Nicht benötigt","Nicht benötigt","Nicht benötigt","Nicht benötigt","Nicht benötigt","Nicht benötigt"]
["2025-10-12","Nicht benötigt","Nicht benötigt","Nicht benötigt","Nicht benötigt","Nicht benötigt","Nicht benötigt"]
["2025-10-13","Elina","Nicht benötigt","Nicht benötigt","Nicht benötigt","Maja & Sophie","Marlene"]
["2025-10-14","Marlene","Nicht benötigt","Nicht benötigt","Nicht benötigt","Maja & Sophie","Remo"]
["2025-10-15","Maja & Sophie","Nicht benötigt","Nicht benötigt","Nicht benötigt","Elina","Matej"]
["2025-10-16","Marius","Nicht benötigt","Nicht benötigt","Nicht benötigt","Matej","Elina"]
["2025-10-17","Remo","Nicht benötigt","Nicht benötigt","Nicht benötigt","Marlene","Maja & Sophie"]
["2025-10-18","Nicht benötigt","Nicht benötigt","Nicht benötigt","Nicht benötigt","Nicht benötigt","Nicht benötigt"]
["2025-10-19","Nicht benötigt","Nicht benötigt","Nicht benötigt","Nicht benötigt","Nicht benötigt","Nicht benötigt"]
["2025-10-20","Elina","Nicht benötigt","Nicht benötigt","Nicht benötigt","Maja & Sophie","Leo"]
["2025-10-21","Matej","Nicht benötigt","Nicht benötigt","Nicht benötigt","Maja & Sophie","Paulina"]
["2025-10-22","Maja & Sophie","Nicht benötigt","Nicht benötigt","Nicht benötigt","Marius","Theo"]
["2025-10-23","Marlene","Nicht benötigt","Nicht benötigt","Nicht benötigt","Elina","Jakob"]
["2025-10-24","Maja & Sophie","Vasu","Nicht benötigt","Nicht benötigt","Marlene","Elina"]
["2025-10-25","Nicht benötigt","Nicht benötigt","Nicht benötigt","Nicht benötigt","Nicht benötigt","Nicht benötigt"]
["2025-10-26","Nicht benötigt","Nicht benötigt","Nicht benötigt","Nicht benötigt","Nicht benötigt","Nicht benötigt"]
["2025-10-27","Elina","Nicht benötigt","Nicht benötigt","Nicht benötigt","Matej","Maja & Sophie"]
["2025-10-28","Ida W.","Nicht benötigt","Nicht benötigt","Nicht benötigt","Elina","Maja & Sophie"]
["2025-10-29","Vasu","Nicht benötigt","Nicht benötigt","Nicht benötigt","Remo","Elina"]
["2025-10-30","Maja & Sophie","Nicht benötigt","Nicht benötigt","Nicht benötigt","Marina","Remo"]
["2025-10-31","Nicht benötigt","Nicht benötigt","Nicht benötigt","Nicht benötigt","Nicht benötigt","Nicht benötigt"]
["2025-11-01","Nicht benötigt","Nicht benötigt","Nicht benötigt","Nicht benötigt","Nicht benötigt","Nicht benötigt"]
["2025-11-02","Nicht benötigt","Nicht benötigt","Nicht benötigt","Nicht benötigt","Nicht benötigt","Nicht benötigt"]
["2025-11-03","Remo","Nicht benötigt","Nicht benötigt","Nicht benötigt","Enno","Maja & Sophie"]
["2025-11-04","Matej","Nicht benötigt","Nicht benötigt","Nicht benötigt","Elina","Vasu"]
["2025-11-05","Marina","Nicht benötigt","Nicht benötigt","Nicht benötigt","Vasu","Matej"]
["2025-11-06","Elina","Nicht benötigt","Nicht benötigt","Nicht benötigt","Theo","Marius"]
["2025-11-07","Ida E.","Remo","Nicht benötigt","Nicht benötigt","Ida W.","Marina"]
["2025-11-08","Nicht benötigt","Nicht benötigt","Nicht benötigt","Nicht benötigt","Nicht benötigt","Nicht benötigt"]
["2025-11-09","Nicht benötigt","Nicht benötigt","Nicht benötigt","Nicht benötigt","Nicht benötigt","Nicht benötigt"]
["2025-11-10","Leo","Nicht benötigt","Nicht benötigt","Nicht benötigt","Marius","Feline"]
["2025-11-11","Feline","Nicht benötigt","Nicht benötigt","Nicht benötigt","Leo","Maja & Sophie"]
["2025-11-12","Enno","Nicht benötigt","Nicht benötigt","Nicht benötigt","Maja & Sophie","Remo"]
["2025-11-13","Jakob","Nicht benötigt","Nicht benötigt","Nicht benötigt","Matej","Ida W."]
["2025-11-14","Maja & Sophie","Nicht benötigt","Nicht benötigt","Nicht benötigt","Jakob","Ida E."]
["2025-11-15","Nicht benötigt","Nicht benötigt","Nicht benötigt","Nicht benötigt","Nicht benötigt","Nicht benötigt"]
["2025-11-16","Nicht benötigt","Nicht benötigt","Nicht benötigt","Nicht benötigt","Nicht benötigt","Nicht benötigt"]
["2025-11-17","Marius","Nicht benötigt","Nicht benötigt","Nicht benötigt","Marlene","Elina"]
["2025-11-18","Maja & Sophie","Nicht benötigt","Nicht benötigt","Nicht benötigt","Ida E.","Matej"]
["2025-11-19","Marlene","Nicht benötigt","Nicht benötigt","Nicht benötigt","Maja & Sophie","Leo"]
["2025-11-20","Ida W.","Nicht benötigt","Matej","Jakob","Marius","Paulina"]
["2025-11-21","Vasu","Maja & Sophie","Nicht benötigt","Nicht benötigt","Enno","Marlene"]
["2025-11-22","Nicht benötigt","Nicht benötigt","Nicht benötigt","Nicht benötigt","Nicht benötigt","Nicht benötigt"]
["2025-11-23","Nicht benötigt","Nicht benötigt","Nicht benötigt","Nicht benötigt","Nicht benötigt","Nicht benötigt"]
["2025-11-24","Leo","Nicht benötigt","Nicht benötigt","Nicht benötigt","Jakob","Maja & Sophie"]
["2025-11-25","Theo","Nicht benötigt","Nicht benötigt","Nicht benötigt","Feline","Enno"]
["2025-11-26","Matej","Nicht benötigt","Nicht benötigt","Nicht benötigt","Remo","Feline"]
["2025-11-27","Jakob","Nicht benötigt","Nicht benötigt","Nicht benötigt","Maja & Sophie","Marius"]
["2025-11-28","Enno","Nicht benötigt","Nicht benötigt","Nicht benötigt","Vasu","Marlene"]
["2025-11-29","Nicht benötigt","Nicht benötigt","Nicht benötigt","Nicht benötigt","Nicht benötigt","Nicht benötigt"]
["2025-11-30","Nicht benötigt","Nicht benötigt","Nicht benötigt","Nicht benötigt","Nicht benötigt","Nicht benötigt"]
["2025-12-01","Paulina","Nicht benötigt","Nicht benötigt","Nicht benötigt","Marina","Vasu"]
["2025-12-02","Remo","Nicht benötigt","Nicht benötigt","Nicht benötigt","Ida E.","Jakob"]
["2025-12-03","Marina","Nicht benötigt","Nicht benötigt","Nicht benötigt","Paulina","Theo"]
["2025-12-04","Marius","Nicht benötigt","Nicht benötigt","Nicht benötigt","Leo","Marina"]
["2025-12-05","Marlene","Ida E.","Nicht benötigt","Nicht benötigt","Theo","Maja & Sophie"]
["2025-12-06","Nicht benötigt","Nicht benötigt","Nicht benötigt","Nicht benötigt","Nicht benötigt","Nicht benötigt"]
["2025-12-07","Nicht benötigt","Nicht benötigt","Nicht benötigt","Nicht benötigt","Nicht benötigt","Nicht benötigt"]
["2025-12-08","Feline","Nicht benötigt","Nicht benötigt","Nicht benötigt","Ida W.","Maja & Sophie"]
["2025-12-09","Elina","Nicht benötigt","Nicht benötigt","Nicht benötigt","Maja & Sophie","Ida E."]
["2025-12-10","Maja & Sophie","Nicht benötigt","Nicht benötigt","Nicht benötigt","Elina","Feline"]
["2025-12-11","Remo","Nicht benötigt","Nicht benötigt","Nicht benötigt","Jakob","Elina"]
["2025-12-12","Nicht benötigt","Nicht benötigt","Nicht benötigt","Nicht benötigt","Nicht benötigt","Nicht benötigt"]
["2025-12-13","Nicht benötigt","Nicht benötigt","Nicht benötigt","Nicht benötigt","Nicht benötigt","Nicht benötigt"]
["2025-12-14","Nicht benötigt","Nicht benötigt","Nicht benötigt","Nicht benötigt","Nicht benötigt","Nicht benötigt"]
["2025-12-15","Vasu","Nicht benötigt","Nicht benötigt","Nicht benötigt","Marlene","Maja & Sophie"]
["2025-12-16","Ida E.","Nicht benötigt","Nicht benötigt","Nicht benötigt","Theo","Marius"]
["2025-12-17","Marina","Nicht benötigt","Nicht benötigt","Nicht benötigt","Matej","Paulina"]
["2025-12-18","Theo","Nicht benötigt","Nicht benötigt","Nicht benötigt","Enno","Marlene"]
["2025-12-19","Jakob","Matej","Nicht benötigt","Nicht benötigt","Marius","Remo"]
["2025-12-20","Nicht benötigt","Nicht benötigt","Nicht benötigt","Nicht benötigt","Nicht benötigt","Nicht benötigt"]
["2025-12-21","Nicht benötigt","Nicht benötigt","Nicht benötigt","Nicht benötigt","Nicht benötigt","Nicht benötigt"]
["2025-12-22","Nicht benötigt","Nicht benötigt","Nicht benötigt","Nicht benötigt","Nicht benötigt","Nicht benötigt"]
["2025-12-23","Nicht benötigt","Nicht benötigt","Nicht benötigt","Nicht benötigt","Nicht benötigt","Nicht benötigt"]
["2025-12-24","Nicht benötigt","Nicht benötigt","Nicht benötigt","Nicht benötigt","Nicht benötigt","Nicht benötigt"]
["2025-12-25","Nicht benötigt","Nicht benötigt","Nicht benötigt","Nicht benötigt","Nicht benötigt","Nicht benötigt"]
["2025-12-26","Nicht benötigt","Nicht benötigt","Nicht benötigt","Nicht benötigt","Nicht benötigt","Nicht benötigt"]
["2025-12-27","Nicht benötigt","Nicht benötigt","Nicht benötigt","Nicht benötigt","Nicht benötigt","Nicht benötigt"]
["2025-12-28","Nicht benötigt","Nicht benötigt","Nicht benötigt","Nicht benötigt","Nicht benötigt","Nicht benötigt"]
["2025-12-29","Nicht benötigt","Nicht benötigt","Nicht benötigt","Nicht benötigt","Nicht benötigt","Nicht benötigt"]
["2025-12-30","Nicht benötigt","Nicht benötigt","Nicht benötigt","Nicht benötigt","Nicht benötigt","Nicht benötigt"]
["2025-12-31","Nicht benötigt","Nicht benötigt","Nicht benötigt","Nicht benötigt","Nicht benötigt","Nicht benötigt"]
["2026-01-01","Nicht benötigt","Nicht benötigt","Nicht benötigt","Nicht benötigt","Nicht benötigt","Nicht benötigt"]
["2026-01-02","Nicht benötigt","Nicht benötigt","Nicht benötigt","Nicht benötigt","Nicht benötigt","Nicht benötigt"]
["2026-01-03","Nicht benötigt","Nicht benötigt","Nicht benötigt","Nicht benötigt","Nicht benötigt","Nicht benötigt"]
["2026-01-04","Nicht benötigt","Nicht benötigt","Nicht benötigt","Nicht benötigt","Nicht benötigt","Nicht benötigt"]
["2026-01-05","Marius","Nicht benötigt","Nicht benötigt","Nicht benötigt","Feline","Leo"]
["2026-01-06","Vasu","Nicht benötigt","Nicht benötigt","Nicht benötigt","Leo","Marlene"]
["2026-01-07","Feline","Nicht benötigt","Nicht benötigt","Nicht benötigt","Paulina","Enno"]
["2026-01-08","Ida E.","Nicht benötigt","Nicht benötigt","Nicht benötigt","Matej","Marina"]
["2026-01-09","Marlene","Feline","Nicht benötigt","Nicht benötigt","Elina","Matej"]
["2026-01-10","Nicht benötigt","Nicht benötigt","Nicht benötigt","Nicht benötigt","Nicht benötigt","Nicht benötigt"]
["2026-01-11","Nicht benötigt","Nicht benötigt","Nicht benötigt","Nicht benötigt","Nicht benötigt","Nicht benötigt"]
["2026-01-12","Paulina","Nicht benötigt","Nicht benötigt","Nicht benötigt","Marlene","Maja & Sophie"]
["2026-01-13","Enno","Nicht benötigt","Nicht benötigt","Nicht benötigt","Vasu","Ida E."]
["2026-01-14","Remo","Nicht benötigt","Nicht benötigt","Nicht benötigt","Theo","Vasu"]
["2026-01-15","Ida W.","Nicht benötigt","Feline","Matej","Ida E.","Enno"]
["2026-01-16","Theo","Nicht benötigt","Nicht benötigt","Nicht benötigt","Enno","Paulina"]
["2026-01-17","Nicht benötigt","Nicht benötigt","Nicht benötigt","Nicht benötigt","Nicht benötigt","Nicht benötigt"]
["2026-01-18","Nicht benötigt","Nicht benötigt","Nicht benötigt","Nicht benötigt","Nicht benötigt","Nicht benötigt"]
["2026-01-19","Marius","Nicht benötigt","Nicht benötigt","Nicht benötigt","Ida W.","Maja & Sophie"]
["2026-01-20","Elina","Nicht benötigt","Nicht benötigt","Nicht benötigt","Marius","Ida W."]
["2026-01-21","Maja & Sophie","Nicht benötigt","Nicht benötigt","Nicht benötigt","Marina","Remo"]
["2026-01-22","Marina","Nicht benötigt","Nicht benötigt","Nicht benötigt","Maja & Sophie","Elina"]
["2026-01-23","Theo","Ida W.","Nicht benötigt","Nicht benötigt","Vasu","Marina"]
["2026-01-24","Nicht benötigt","Nicht benötigt","Nicht benötigt","Nicht benötigt","Nicht benötigt","Nicht benötigt"]
["2026-01-25","Nicht benötigt","Nicht benötigt","Nicht benötigt","Nicht benötigt","Nicht benötigt","Nicht benötigt"]
["2026-01-26","Maja & Sophie","Nicht benötigt","Nicht benötigt","Nicht benötigt","Remo","Paulina"]
["2026-01-27","Feline","Nicht benötigt","Nicht benötigt","Nicht benötigt","Maja & Sophie","Marius"]
["2026-01-28","Ida E.","Nicht benötigt","Nicht benötigt","Nicht benötigt","Marlene","Remo"]
["2026-01-29","Elina","Nicht benötigt","Nicht benötigt","Nicht benötigt","Ida E.","Feline"]
["2026-01-30","Remo","Nicht benötigt","Nicht benötigt","Nicht benötigt","Feline","Enno"]
["2026-01-31","Nicht benötigt","Nicht benötigt","Nicht benötigt","Nicht benötigt","Nicht benötigt","Nicht benötigt"]
["2026-02-01","Nicht benötigt","Nicht benötigt","Nicht benötigt","Nicht benötigt","Nicht benötigt","Nicht benötigt"]
["2026-02-02","Marius","Nicht benötigt","Nicht benötigt","Nicht benötigt","Matej","Remo"]
["2026-02-03","Paulina","Nicht benötigt","Nicht benötigt","Nicht benötigt","Remo","Matej"]
["2026-02-04","Vasu","Nicht benötigt","Nicht benötigt","Nicht benötigt","Maja & Sophie","Theo"]
["2026-02-05","Ida W.","Nicht benötigt","Nicht benötigt","Nicht benötigt","Paulina","Maja & Sophie"]
["2026-02-06","Leo","Marlene","Nicht benötigt","Nicht benötigt","Marius","Vasu"]
["2026-02-07","Nicht benötigt","Nicht benötigt","Nicht benötigt","Nicht benötigt","Nicht benötigt","Nicht benötigt"]
["2026-02-08","Nicht benötigt","Nicht benötigt","Nicht benötigt","Nicht benötigt","Nicht benötigt","Nicht benötigt"]
["2026-02-09","Paulina","Nicht benötigt","Nicht benötigt","Nicht benötigt","Marlene","Leo"]
["2026-02-10","Matej","Nicht benötigt","Nicht benötigt","Nicht benötigt","Ida E.","Marlene"]
["2026-02-11","Maja & Sophie","Nicht benötigt","Nicht benötigt","Nicht benötigt","Ida W.","Feline"]
["2026-02-12","Enno","Nicht benötigt","Nicht benötigt","Nicht benötigt","Leo","Ida W."]
["2026-02-13","Marius","Nicht benötigt","Nicht benötigt","Nicht benötigt","Theo","Ida E."]
["2026-02-14","Nicht benötigt","Nicht benötigt","Nicht benötigt","Nicht benötigt","Nicht benötigt","Nicht benötigt"]
["2026-02-15","Nicht benötigt","Nicht benötigt","Nicht benötigt","Nicht benötigt","Nicht benötigt","Nicht benötigt"]
["2026-02-16","Feline","Nicht benötigt","Nicht benötigt","Nicht benötigt","Marina","Marlene"]
["2026-02-17","Maja & Sophie","Nicht benötigt","Nicht benötigt","Nicht benötigt","Enno","Theo"]
["2026-02-18","Leo","Nicht benötigt","Nicht benötigt","Nicht benötigt","Paulina","Maja & Sophie"]
["2026-02-19","Elina","Nicht benötigt","Marina","Marlene","Maja & Sophie","Enno"]
["2026-02-20","Marlene","Elina","Nicht benötigt","Nicht benötigt","Matej","Paulina"]
["2026-02-21","Nicht benötigt","Nicht benötigt","Nicht benötigt","Nicht benötigt","Nicht benötigt","Nicht benötigt"]
["2026-02-22","Nicht benötigt","Nicht benötigt","Nicht benötigt","Nicht benötigt","Nicht benötigt","Nicht benötigt"]
["2026-02-23","Ida E.","Nicht benötigt","Nicht benötigt","Nicht benötigt","Maja & Sophie","Enno"]
["2026-02-24","Marius","Nicht benötigt","Nicht benötigt","Nicht benötigt","Paulina","Marina"]
["2026-02-25","Enno","Nicht benötigt","Nicht benötigt","Nicht benötigt","Marlene","Theo"]
["2026-02-26","Maja & Sophie","Nicht benötigt","Nicht benötigt","Nicht benötigt","Elina","Marius"]
["2026-02-27","Paulina","Nicht benötigt","Nicht benötigt","Nicht benötigt","Feline","Elina"]
["2026-02-28","Nicht benötigt","Nicht benötigt","Nicht benötigt","Nicht benötigt","Nicht benötigt","Nicht benötigt"]
["2026-03-01","Nicht benötigt","Nicht benötigt","Nicht benötigt","Nicht benötigt","Nicht benötigt","Nicht benötigt"]
["2026-03-02","Theo","Nicht benötigt","Nicht benötigt","Nicht benötigt","Marina","Remo"]
["2026-03-03","Elina","Nicht benötigt","Nicht benötigt","Nicht benötigt","Enno","Marius"]
["2026-03-04","Feline","Nicht benötigt","Nicht benötigt","Nicht benötigt","Ida W.","Matej"]
["2026-03-05","Remo","Nicht benötigt","Nicht benötigt","Nicht benötigt","Theo","Maja & Sophie"]
["2026-03-06","Marlene","Paulina","Nicht benötigt","Nicht benötigt","Ida E.","Leo"]
["2026-03-07","Nicht benötigt","Nicht benötigt","Nicht benötigt","Nicht benötigt","Nicht benötigt","Nicht benötigt"]
["2026-03-08","Nicht benötigt","Nicht benötigt","Nicht benötigt","Nicht benötigt","Nicht benötigt","Nicht benötigt"]
["2026-03-09","Leo","Nicht benötigt","Nicht benötigt","Nicht benötigt","Remo","Vasu"]
["2026-03-10","Vasu","Nicht benötigt","Nicht benötigt","Nicht benötigt","Leo","Feline"]
["2026-03-11","Ida W.","Nicht benötigt","Nicht benötigt","Nicht benötigt","Marius","Ida E."]
["2026-03-12","Marina","Nicht benötigt","Nicht benötigt","Nicht benötigt","Vasu","Ida W."]
["2026-03-13","Matej","Nicht benötigt","Nicht benötigt","Nicht benötigt","Maja & Sophie","Elina"]
["2026-03-14","Nicht benötigt","Nicht benötigt","Nicht benötigt","Nicht benötigt","Nicht benötigt","Nicht benötigt"]
["2026-03-15","Nicht benötigt","Nicht benötigt","Nicht benötigt","Nicht benötigt","Nicht benötigt","Nicht benötigt"]
["2026-03-16","Maja & Sophie","Nicht benötigt","Nicht benötigt","Nicht benötigt","Matej","Marlene"]
["2026-03-17","Marina","Nicht benötigt","Nicht benötigt","Nicht benötigt","Maja & Sophie","Leo"]
["2026-03-18","Matej","Nicht benötigt","Nicht benötigt","Nicht benötigt","Marlene","Maja & Sophie"]
["2026-03-19","Leo","Nicht benötigt","Paulina","Theo","Feline","Marius"]
["2026-03-20","Enno","Marina","Nicht benötigt","Nicht benötigt","Elina","Matej"]
["2026-03-21","Nicht benötigt","Nicht benötigt","Nicht benötigt","Nicht benötigt","Nicht benötigt","Nicht benötigt"]
["2026-03-22","Nicht benötigt","Nicht benötigt","Nicht benötigt","Nicht benötigt","Nicht benötigt","Nicht benötigt"]
["2026-03-23","Vasu","Nicht benötigt","Nicht benötigt","Nicht benötigt","Paulina","Theo"]
["2026-03-24","Remo","Nicht benötigt","Nicht benötigt","Nicht benötigt","Enno","Paulina"]
["2026-03-25","Ida E.","Nicht benötigt","Nicht benötigt","Nicht benötigt","Remo","Vasu"]
["2026-03-26","Ida W.","Nicht benötigt","Nicht benötigt","Nicht benötigt","Marina","Maja & Sophie"]
["2026-03-27","Leo","Nicht benötigt","Nicht benötigt","Nicht benötigt","Theo","Ida W."]
["2026-03-28","Nicht benötigt","Nicht benötigt","Nicht benötigt","Nicht benötigt","Nicht benötigt","Nicht benötigt"]
["2026-03-29","Nicht benötigt","Nicht benötigt","Nicht benötigt","Nicht benötigt","Nicht benötigt","Nicht benötigt"]
["2026-03-30","Theo","Nicht benötigt","Nicht benötigt","Nicht benötigt","Ida W.","Marina"]
["2026-03-31","Feline","Nicht benötigt","Nicht benötigt","Nicht benötigt","Vasu","Ida E."]

{"sheet":"Dienstplan clean","index":4,"n_rows":234,"n_cols":7,"rows_kept":234,"cut":false,"hidden":false,"merged":[]}
[null,"Frühstück","Kochen","Elternabend 1","Elternabend 2","Notdienst Essensausgabe","Putznotdienst"]
["2025-08-11","Vasu",null,null,null,"Theo","Enno"]
["2025-08-12","Ida W.",null,null,null,"Leo","Marina"]
["2025-08-13","Marina",null,null,null,"Enno","Theo"]
["2025-08-14","Paulina",null,null,null,"Marina","Ida W."]
["2025-08-15","Theo","Marina",null,null,"Vasu","Feline"]
["2025-08-16"]
["2025-08-17"]
["2025-08-18","Leo",null,null,null,"Paulina","Ida E."]
["2025-08-19","Ida E.",null,null,null,"Ida W.","Leo"]
["2025-08-20","Feline",null,null,null,"Ida E.","Paulina"]
["2025-08-21","Enno",null,"Vasu","Marina","Feline","Ida W."]
["2025-08-22","Feline",null,null,null,"Paulina","Vasu"]
["2025-08-23"]
["2025-08-24"]
["2025-08-25","Ida E.",null,null,null,"Theo","Vasu"]
["2025-08-26","Enno",null,null,null,"Leo","Marina"]
["2025-08-27","Ida W.",null,null,null,"Feline","Theo"]
["2025-08-28","Marina",null,null,null,"Vasu","Paulina"]
["2025-08-29","Theo","Enno",null,null,"Ida W.","Leo"]
["2025-08-30"]
["2025-08-31"]
["2025-09-01","Paulina",null,null,null,"Ida E.","Feline"]
["2025-09-02","Vasu",null,null,null,"Enno","Ida E."]
["2025-09-03","Leo",null,null,null,"Marina","Enno"]
["2025-09-04","Feline",null,null,null,"Paulina","Vasu"]
["2025-09-05","Enno",null,null,null,"Vasu","Marina"]
["2025-09-06"]
["2025-09-07"]
["2025-09-08"]
["2025-09-09","Theo",null,null,null,"Ida E.","Enno"]
["2025-09-10","Vasu",null,null,null,"Ida W.","Leo"]
["2025-09-11","Marius",null,null,null,"Marina","Feline"]
["2025-09-12","Remo","Marius",null,null,"Enno","Ida W."]
["2025-09-13"]
["2025-09-14"]
["2025-09-15"]
["2025-09-16","Maja & Sophie",null,null,null,"Marius","Maja & Sophie"]
["2025-09-17","Remo",null,null,null,"Leo","Marius"]
["2025-09-18","Jakob",null,"Enno","Paulina","Remo","Theo"]
["2025-09-19","Marius",null,null,null,"Jakob","Paulina"]
["2025-09-20"]
["2025-09-21"]
["2025-09-22","Jakob",null,null,null,"Remo","Marius"]
["2025-09-23","Paulina",null,null,null,"Jakob","Remo"]
["2025-09-24","Leo",null,null,null,"Marius","Jakob"]
["2025-09-25","Ida W.",null,null,null,"Theo","Ida E."]
["2025-09-26","Ida E.","Theo",null,null,"Feline","Ida W."]
["2025-09-27"]
["2025-09-28"]
["2025-09-29","Matej",null,null,null,"Remo","Jakob"]
["2025-09-30","Jakob",null,null,null,"Matej","Marius"]
["2025-10-01","Paulina",null,null,null,"Jakob","Matej"]
["2025-10-02","Theo",null,null,null,"Paulina","Enno"]
["2025-10-03"]
["2025-10-04"]
["2025-10-05"]
["2025-10-06","Maja & Sophie",null,null,null,"Matej","Remo"]
["2025-10-07","Marlene",null,null,null,"Maja & Sophie","Matej"]
["2025-10-08","Matej",null,null,null,"Maja & Sophie","Marlene"]
["2025-10-09","Maja & Sophie",null,"Theo","Feline","Marlene","Jakob"]
["2025-10-10","Marina","Jakob",null,null,"Feline","Maja & Sophie"]
["2025-10-11"]
["2025-10-12"]
["2025-10-13","Elina",null,null,null,"Maja & Sophie","Marlene"]
["2025-10-14","Marlene",null,null,null,"Maja & Sophie","Remo"]
["2025-10-15","Maja & Sophie",null,null,null,"Elina","Matej"]
["2025-10-16","Marius",null,null,null,"Matej","Elina"]
["2025-10-17","Remo",null,null,null,"Marlene","Maja & Sophie"]
["2025-10-18"]
["2025-10-19"]
["2025-10-20","Elina",null,null,null,"Maja & Sophie","Leo"]
["2025-10-21","Matej",null,null,null,"Maja & Sophie","Paulina"]
["2025-10-22","Maja & Sophie",null,null,null,"Marius","Theo"]
["2025-10-23","Marlene",null,null,null,"Elina","Jakob"]
["2025-10-24","Maja & Sophie","Vasu",null,null,"Marlene","Elina"]
["2025-10-25"]
["2025-10-26"]
["2025-10-27","Elina",null,null,null,"Matej","Maja & Sophie"]
["2025-10-28","Ida W.",null,null,null,"Elina","Maja & Sophie"]
["2025-10-29","Vasu",null,null,null,"Remo","Elina"]
["2025-10-30","Maja & Sophie",null,null,null,"Marina","Remo"]
["2025-10-31"]
["2025-11-01"]
["2025-11-02"]
["2025-11-03","Remo",null,null,null,"Enno","Maja & Sophie"]
["2025-11-04","Matej",null,null,null,"Elina","Vasu"]
["2025-11-05","Marina",null,null,null,"Vasu","Matej"]
["2025-11-06","Elina",null,null,null,"Theo","Marius"]
["2025-11-07","Ida E.","Remo",null,null,"Ida W.","Marina"]
["2025-11-08"]
["2025-11-09"]
["2025-11-10","Leo",null,null,null,"Marius","Feline"]
["2025-11-11","Feline",null,null,null,"Leo","Maja & Sophie"]
["2025-11-12","Enno",null,null,null,"Maja & Sophie","Remo"]
["2025-11-13","Jakob",null,null,null,"Matej","Ida W."]
["2025-11-14","Maja & Sophie",null,null,null,"Jakob","Ida E."]
["2025-11-15"]
["2025-11-16"]
["2025-11-17","Marius",null,null,null,"Marlene","Elina"]
["2025-11-18","Maja & Sophie",null,null,null,"Ida E.","Matej"]
["2025-11-19","Marlene",null,null,null,"Maja & Sophie","Leo"]
["2025-11-20","Ida W.",null,"Matej","Jakob","Marius","Paulina"]
["2025-11-21","Vasu","Maja & Sophie",null,null,"Enno","Marlene"]
["2025-11-22"]
["2025-11-23"]
["2025-11-24","Leo",null,null,null,"Jakob","Maja & Sophie"]
["2025-11-25","Theo",null,null,null,"Feline","Enno"]
["2025-11-26","Matej",null,null,null,"Remo","Feline"]
["2025-11-27","Jakob",null,null,null,"Maja & Sophie","Marius"]
["2025-11-28","Enno",null,null,null,"Vasu","Marlene"]
["2025-11-29"]
["2025-11-30"]
["2025-12-01","Paulina",null,null,null,"Marina","Vasu"]
["2025-12-02","Remo",null,null,null,"Ida E.","Jakob"]
["2025-12-03","Marina",null,null,null,"Paulina","Theo"]
["2025-12-04","Marius",null,null,null,"Leo","Marina"]
["2025-12-05","Marlene","Ida E.",null,null,"Theo","Maja & Sophie"]
["2025-12-06"]
["2025-12-07"]
["2025-12-08","Feline",null,null,null,"Ida W.","Maja & Sophie"]
["2025-12-09","Elina",null,null,null,"Maja & Sophie","Ida E."]
["2025-12-10","Maja & Sophie",null,null,null,"Elina","Feline"]
["2025-12-11","Remo",null,null,null,"Jakob","Elina"]
["2025-12-12"]
["2025-12-13"]
["2025-12-14"]
["2025-12-15","Vasu",null,null,null,"Marlene","Maja & Sophie"]
["2025-12-16","Ida E.",null,null,null,"Theo","Marius"]
["2025-12-17","Marina",null,null,null,"Matej","Paulina"]
["2025-12-18","Theo",null,null,null,"Enno","Marlene"]
["2025-12-19","Jakob","Matej",null,null,"Marius","Remo"]
["2025-12-20"]
["2025-12-21"]
["2025-12-22"]
["2025-12-23"]
["2025-12-24"]
["2025-12-25"]
["2025-12-26"]
["2025-12-27"]
["2025-12-28"]
["2025-12-29"]
["2025-12-30"]
["2025-12-31"]
["2026-01-01"]
["2026-01-02"]
["2026-01-03"]
["2026-01-04"]
["2026-01-05","Fritzi",null,null,null,"Feline","Leo"]
["2026-01-06","Vasu",null,null,null,"Fritzi","Marlene"]
["2026-01-07","Feline",null,null,null,"Paulina","Fritzi"]
["2026-01-08","Ida E.",null,null,null,"Matej","Marina"]
["2026-01-09","Marlene","Feline",null,null,"Elina","Matej"]
["2026-01-10"]
["2026-01-11"]
["2026-01-12","Fritzi",null,null,null,"Marlene","Maja & Sophie"]
["2026-01-13","Enno",null,null,null,"Fritzi","Ida E."]
["2026-01-14","Remo",null,null,null,"Theo","Fritzi"]
["2026-01-15","Ida W.",null,"Feline","Matej","Ida E.","Enno"]
["2026-01-16","Theo","Leo",null,null,"Enno","Paulina"]
["2026-01-17"]
["2026-01-18"]
["2026-01-19","Fritzi",null,null,null,"Ida W.","Maja & Sophie"]
["2026-01-20","Elina",null,null,null,"Fritzi","Ida W."]
["2026-01-21","Maja & Sophie",null,null,null,"Marina","Fritzi"]
["2026-01-22","Marina",null,null,null,"Maja & Sophie","Elina"]
["2026-01-23","Theo","Ida W.",null,null,"Vasu","Marina"]
["2026-01-24"]
["2026-01-25"]
["2026-01-26","Fritzi",null,null,null,"Remo","Paulina"]
["2026-01-27","Feline",null,null,null,"Fritzi","Marius"]
["2026-01-28","Ida E.",null,null,null,"Marlene","Fritzi"]
["2026-01-29","Elina",null,null,null,"Ida E.","Feline"]
["2026-01-30","Remo","Fritzi",null,null,"Feline","Enno"]
["2026-01-31"]
["2026-02-01"]
["2026-02-02","Fritzi",null,null,null,"Matej","Remo"]
["2026-02-03","Paulina",null,null,null,"Fritzi","Matej"]
["2026-02-04","Vasu",null,null,null,"Maja & Sophie","Fritzi"]
["2026-02-05","Ida W.",null,null,null,"Paulina","Maja & Sophie"]
["2026-02-06","Leo","Marlene",null,null,"Marius","Vasu"]
["2026-02-07"]
["2026-02-08"]
["2026-02-09","Fritzi",null,null,null,"Marlene","Leo"]
["2026-02-10","Matej",null,null,null,"Fritzi","Marlene"]
["2026-02-11","Maja & Sophie",null,null,null,"Ida W.","Fritzi"]
["2026-02-12","Enno",null,null,null,"Leo","Ida W."]
["2026-02-13","Marius","Matej",null,null,"Theo","Ida E."]
["2026-02-14"]
["2026-02-15"]
["2026-02-16","Fritzi",null,null,null,"Marina","Marlene"]
["2026-02-17","Maja & Sophie",null,null,null,"Enno","Theo"]
["2026-02-18","Leo",null,null,null,"Fritzi","Maja & Sophie"]
["2026-02-19","Elina",null,"Marina","Marlene","Maja & Sophie","Fritzi"]
["2026-02-20","Marlene","Elina",null,null,"Matej","Paulina"]
["2026-02-21"]
["2026-02-22"]
["2026-02-23","Ida E.",null,null,null,"Maja & Sophie","Enno"]
["2026-02-24","Marius",null,null,null,"Paulina","Marina"]
["2026-02-25","Enno",null,null,null,"Marlene","Theo"]
["2026-02-26","Maja & Sophie",null,null,null,"Elina","Fritzi"]
["2026-02-27","Paulina","Maja & Sophie",null,null,"Feline","Elina"]
["2026-02-28"]
["2026-03-01"]
["2026-03-02","Theo",null,null,null,"Marina","Remo"]
["2026-03-03","Elina",null,null,null,"Enno","Marius"]
["2026-03-04","Feline",null,null,null,"Ida W.","Matej"]
["2026-03-05","Remo",null,null,null,"Theo","Maja & Sophie"]
["2026-03-06","Marlene","Fritzi",null,null,"Ida E.","Leo"]
["2026-03-07"]
["2026-03-08"]
["2026-03-09","Fritzi",null,null,null,"Remo","Vasu"]
["2026-03-10","Vasu",null,null,null,"Leo","Feline"]
["2026-03-11","Ida W.",null,null,null,"Marius","Ida E."]
["2026-03-12","Marina",null,null,null,"Vasu","Ida W."]
["2026-03-13","Matej","Maja & Sophie",null,null,"Fritzi","Elina"]
["2026-03-14"]
["2026-03-15"]
["2026-03-16","Maja & Sophie",null,null,null,"Matej","Marlene"]
["2026-03-17","Marina",null,null,null,"Maja & Sophie","Leo"]
["2026-03-18","Matej",null,null,null,"Marlene","Maja & Sophie"]
["2026-03-19","Fritzi",null,"Paulina","Theo","Feline","Marius"]
["2026-03-20","Enno","Marina",null,null,"Elina","Matej"]
["2026-03-21"]
["2026-03-22"]
["2026-03-23","Vasu",null,null,null,"Paulina","Theo"]
["2026-03-24","Remo",null,null,null,"Enno","Paulina"]
["2026-03-25","Ida E.",null,null,null,"Remo","Vasu"]
["2026-03-26","Ida W.",null,null,null,"Marina","Maja & Sophie"]
["2026-03-27","Leo","Marius",null,null,"Theo","Ida W."]
["2026-03-28"]
["2026-03-29"]
["2026-03-30","Theo",null,null,null,"Ida W.","Marina"]
["2026-03-31","Feline",null,null,null,"Fritzi","Ida E."]

{"sheet":"Prüfung","index":5,"n_rows":10,"n_cols":18,"rows_kept":10,"cut":false,"hidden":false,"merged":[]}
[null,"Enno","Feline","Ida E.","Ida W.","Leo","Marina","Paulina","Theo","Vasu","Elina","Jakob","Maja & Sophie","Marius","Marlene","Matej","Remo","Fritzi"]
["Frühstück",{"$f":"COUNTIF(Dienstplan!$B:$B,Prüfung!B1)","v":9},{"$f":"COUNTIF(Dienstplan!$B:$B,Prüfung!C1)","v":10},{"$f":"COUNTIF(Dienstplan!$B:$B,Prüfung!D1)","v":9},{"$f":"COUNTIF(Dienstplan!$B:$B,Prüfung!E1)","v":9},{"$f":"COUNTIF(Dienstplan!$B:$B,Prüfung!F1)","v":10},{"$f":"COUNTIF(Dienstplan!$B:$B,Prüfung!G1)","v":9},{"$f":"COUNTIF(Dienstplan!$B:$B,Prüfung!H1)","v":9},{"$f":"COUNTIF(Dienstplan!$B:$B,Prüfung!I1)","v":10},{"$f":"COUNTIF(Dienstplan!$B:$B,Prüfung!J1)","v":10},{"$f":"COUNTIF(Dienstplan!$B:$B,Prüfung!K1)","v":9},{"$f":"COUNTIF(Dienstplan!$B:$B,Prüfung!L1)","v":6},{"$f":"COUNTIF(Dienstplan!$B:$B,Prüfung!M1)","v":16},{"$f":"COUNTIF(Dienstplan!$B:$B,Prüfung!N1)","v":10},{"$f":"COUNTIF(Dienstplan!$B:$B,Prüfung!O1)","v":8},{"$f":"COUNTIF(Dienstplan!$B:$B,Prüfung!P1)","v":8},{"$f":"COUNTIF(Dienstplan!$B:$B,Prüfung!Q1)","v":10},{"$f":"COUNTIF(Dienstplan!$B:$B,Prüfung!R1)","v":0}]
["Kochen",{"$f":"COUNTIF(Dienstplan!$C:$C,Prüfung!B1)","v":1},{"$f":"COUNTIF(Dienstplan!$C:$C,Prüfung!C1)","v":1},{"$f":"COUNTIF(Dienstplan!$C:$C,Prüfung!D1)","v":1},{"$f":"COUNTIF(Dienstplan!$C:$C,Prüfung!E1)","v":1},{"$f":"COUNTIF(Dienstplan!$C:$C,Prüfung!F1)","v":0},{"$f":"COUNTIF(Dienstplan!$C:$C,Prüfung!G1)","v":2},{"$f":"COUNTIF(Dienstplan!$C:$C,Prüfung!H1)","v":1},{"$f":"COUNTIF(Dienstplan!$C:$C,Prüfung!I1)","v":1},{"$f":"COUNTIF(Dienstplan!$C:$C,Prüfung!J1)","v":1},{"$f":"COUNTIF(Dienstplan!$C:$C,Prüfung!K1)","v":1},{"$f":"COUNTIF(Dienstplan!$C:$C,Prüfung!L1)","v":1},{"$f":"COUNTIF(Dienstplan!$C:$C,Prüfung!M1)","v":1},{"$f":"COUNTIF(Dienstplan!$C:$C,Prüfung!N1)","v":1},{"$f":"COUNTIF(Dienstplan!$C:$C,Prüfung!O1)","v":1},{"$f":"COUNTIF(Dienstplan!$C:$C,Prüfung!P1)","v":1},{"$f":"COUNTIF(Dienstplan!$C:$C,Prüfung!Q1)","v":1},{"$f":"COUNTIF(Dienstplan!$C:$C,Prüfung!R1)","v":0}]
["Elternabend 1",{"$f":"COUNTIF(Dienstplan!$D:$D,Prüfung!B1)","v":1},{"$f":"COUNTIF(Dienstplan!$D:$D,Prüfung!C1)","v":1},{"$f":"COUNTIF(Dienstplan!$D:$D,Prüfung!D1)","v":0},{"$f":"COUNTIF(Dienstplan!$D:$D,Prüfung!E1)","v":0},{"$f":"COUNTIF(Dienstplan!$D:$D,Prüfung!F1)","v":0},{"$f":"COUNTIF(Dienstplan!$D:$D,Prüfung!G1)","v":1},{"$f":"COUNTIF(Dienstplan!$D:$D,Prüfung!H1)","v":1},{"$f":"COUNTIF(Dienstplan!$D:$D,Prüfung!I1)","v":1},{"$f":"COUNTIF(Dienstplan!$D:$D,Prüfung!J1)","v":1},{"$f":"COUNTIF(Dienstplan!$D:$D,Prüfung!K1)","v":0},{"$f":"COUNTIF(Dienstplan!$D:$D,Prüfung!L1)","v":0},{"$f":"COUNTIF(Dienstplan!$D:$D,Prüfung!M1)","v":0},{"$f":"COUNTIF(Dienstplan!$D:$D,Prüfung!N1)","v":0},{"$f":"COUNTIF(Dienstplan!$D:$D,Prüfung!O1)","v":0},{"$f":"COUNTIF(Dienstplan!$D:$D,Prüfung!P1)","v":1},{"$f":"COUNTIF(Dienstplan!$D:$D,Prüfung!Q1)","v":0},{"$f":"COUNTIF(Dienstplan!$D:$D,Prüfung!R1)","v":0}]
["Elternabend 2",{"$f":"COUNTIF(Dienstplan!$E:$E,Prüfung!B1)","v":0},{"$f":"COUNTIF(Dienstplan!$E:$E,Prüfung!C1)","v":1},{"$f":"COUNTIF(Dienstplan!$E:$E,Prüfung!D1)","v":0},{"$f":"COUNTIF(Dienstplan!$E:$E,Prüfung!E1)","v":0},{"$f":"COUNTIF(Dienstplan!$E:$E,Prüfung!F1)","v":0},{"$f":"COUNTIF(Dienstplan!$E:$E,Prüfung!G1)","v":1},{"$f":"COUNTIF(Dienstplan!$E:$E,Prüfung!H1)","v":1},{"$f":"COUNTIF(Dienstplan!$E:$E,Prüfung!I1)","v":1},{"$f":"COUNTIF(Dienstplan!$E:$E,Prüfung!J1)","v":0},{"$f":"COUNTIF(Dienstplan!$E:$E,Prüfung!K1)","v":0},{"$f":"COUNTIF(Dienstplan!$E:$E,Prüfung!L1)","v":1},{"$f":"COUNTIF(Dienstplan!$E:$E,Prüfung!M1)","v":0},{"$f":"COUNTIF(Dienstplan!$E:$E,Prüfung!N1)","v":0},{"$f":"COUNTIF(Dienstplan!$E:$E,Prüfung!O1)","v":1},{"$f":"COUNTIF(Dienstplan!$E:$E,Prüfung!P1)","v":1},{"$f":"COUNTIF(Dienstplan!$E:$E,Prüfung!Q1)","v":0},{"$f":"COUNTIF(Dienstplan!$E:$E,Prüfung!R1)","v":0}]
["Notdienst Essensausgabe",{"$f":"COUNTIF(Dienstplan!$F:$F,Prüfung!B1)","v":10},{"$f":"COUNTIF(Dienstplan!$F:$F,Prüfung!C1)","v":9},{"$f":"COUNTIF(Dienstplan!$F:$F,Prüfung!D1)","v":9},{"$f":"COUNTIF(Dienstplan!$F:$F,Prüfung!E1)","v":9},{"$f":"COUNTIF(Dienstplan!$F:$F,Prüfung!F1)","v":8},{"$f":"COUNTIF(Dienstplan!$F:$F,Prüfung!G1)","v":9},{"$f":"COUNTIF(Dienstplan!$F:$F,Prüfung!H1)","v":10},{"$f":"COUNTIF(Dienstplan!$F:$F,Prüfung!I1)","v":10},{"$f":"COUNTIF(Dienstplan!$F:$F,Prüfung!J1)","v":9},{"$f":"COUNTIF(Dienstplan!$F:$F,Prüfung!K1)","v":8},{"$f":"COUNTIF(Dienstplan!$F:$F,Prüfung!L1)","v":6},{"$f":"COUNTIF(Dienstplan!$F:$F,Prüfung!M1)","v":17},{"$f":"COUNTIF(Dienstplan!$F:$F,Prüfung!N1)","v":9},{"$f":"COUNTIF(Dienstplan!$F:$F,Prüfung!O1)","v":10},{"$f":"COUNTIF(Dienstplan!$F:$F,Prüfung!P1)","v":10},{"$f":"COUNTIF(Dienstplan!$F:$F,Prüfung!Q1)","v":9},{"$f":"COUNTIF(Dienstplan!$F:$F,Prüfung!R1)","v":0}]
["Putznotdienst",{"$f":"COUNTIF(Dienstplan!$G:$G,Prüfung!B1)","v":10},{"$f":"COUNTIF(Dienstplan!$G:$G,Prüfung!C1)","v":9},{"$f":"COUNTIF(Dienstplan!$G:$G,Prüfung!D1)","v":9},{"$f":"COUNTIF(Dienstplan!$G:$G,Prüfung!E1)","v":9},{"$f":"COUNTIF(Dienstplan!$G:$G,Prüfung!F1)","v":9},{"$f":"COUNTIF(Dienstplan!$G:$G,Prüfung!G1)","v":9},{"$f":"COUNTIF(Dienstplan!$G:$G,Prüfung!H1)","v":10},{"$f":"COUNTIF(Dienstplan!$G:$G,Prüfung!I1)","v":9},{"$f":"COUNTIF(Dienstplan!$G:$G,Prüfung!J1)","v":9},{"$f":"COUNTIF(Dienstplan!$G:$G,Prüfung!K1)","v":8},{"$f":"COUNTIF(Dienstplan!$G:$G,Prüfung!L1)","v":5},{"$f":"COUNTIF(Dienstplan!$G:$G,Prüfung!M1)","v":18},{"$f":"COUNTIF(Dienstplan!$G:$G,Prüfung!N1)","v":10},{"$f":"COUNTIF(Dienstplan!$G:$G,Prüfung!O1)","v":9},{"$f":"COUNTIF(Dienstplan!$G:$G,Prüfung!P1)","v":9},{"$f":"COUNTIF(Dienstplan!$G:$G,Prüfung!Q1)","v":10},{"$f":"COUNTIF(Dienstplan!$G:$G,Prüfung!R1)","v":0}]
[]
["Summe ohne Elternabende",{"$f":"SUM(B2:B3,B6:B7)","v":30},29,28,28,27,29,30,30,29,26,18,52,30,28,28,30,{"$f":"SUM(R2:R3,R6:R7)","v":0}]
["Summe Elternabend",{"$f":"SUM(B4:B5)","v":1},2,0,0,0,2,2,2,1,0,1,0,0,1,2,0,{"$f":"SUM(R4:R5)","v":0}]

{"sheet":"Leerer Dienstplan","index":6,"n_rows":20,"n_cols":7,"rows_kept":20,"cut":false,"hidden":false,"merged":[]}
[null,"Frühstück","Kochen","Elternabend 1","Elternabend 2","Notdienst Essensausgabe","Putznotdienst"]
["2025-08-11",null,"x","x","x"]
["2025-08-12",null,"x","x","x"]
["2025-08-13",null,"x","x","x"]
["2025-08-14",null,"x","x","x"]
["2025-08-15",null,null,"x","x"]
["2025-08-16","x","x","x","x","x","x"]
["2025-08-17","x","x","x","x","x","x"]
["2025-08-18",null,"x","x","x"]
["2025-08-19",null,"x","x","x"]
["2025-08-20",null,"x","x","x"]
["2025-08-21",null,"x"]
["2025-08-22",null,"x","x","x"]
["2025-08-23","x","x","x","x","x","x"]
["2025-08-24","x","x","x","x","x","x"]
["2025-08-25",null,"x","x","x"]
["2025-08-26",null,"x","x","x"]
["2025-08-27",null,"x","x","x"]
["2025-08-28",null,"x","x","x"]
["2025-08-29",null,null,"x","x"]